{"text_format":"1","workbook":"xlsx","n_sheets":17,"sheets":["Hinweise","Betriebsdaten","Zufuhr","Abgabe","Stoffstrombilanz Einzeljahr ","Stoffstrombilanz dreijährig","individueller Bilanzwert","Handelsdünger","Wirtschaftsdünger","pfl_Produkte","Futtermittel","tie_Produkte","Leguminosen","Verluste","GV_Tab","Nährstoffausscheidungen","Grobfutter"],"not_rendered":{"charts":0,"images":1,"macros":1,"external_links":1,"defined_names":30,"comments":0,"pivot_tables":0},"unopened":[],"bounds":{"document_bytes":16777216,"sheet_cells":100000,"rows_first":2000,"rows_last":500,"rows_between":2000,"halvings":0,"cell_chars":16384,"cell_head_chars":4096},"cells_cut":0,"cells_raw":0,"read":"whole","date_system":"1900"}

{"sheet":"Hinweise","index":0,"n_rows":13,"n_cols":3,"rows_kept":13,"cut":false,"hidden":false,"merged":[[11,0,11,1],[11,2,11,6],[12,0,12,1],[12,2,12,6],[10,2,10,6],[10,0,10,1],[0,0,5,6],[7,0,7,6],[8,0,8,1],[8,2,8,6],[9,0,9,1],[9,2,9,6]]}
["\nDie Stoff-Strom-Bilanz-Verordnung verpflichtet bestimmte Betriebe gemäß der Dünge-VO neben der verbindlichen Nährstoffbilanz eine weitere Bilanz, die sogenannte Stoff-Strom-Bilanz, anzufertigen.\nDie Regelungen der StoffBilV gelten bis 2023 für Betriebe  \n\n1.   mit mehr als 20 Hektar landwirtschaftlicher Nutzfläche oder mehr als 50 Großvieheinheiten je Betrieb\n\n2. die unter dieser Grenze liegen aber mindestens 750 kg Stickstoff (N) in Form von Wirtschaftsdünger aufnehmen\n\n3.  die eine Biogasanlage unterhalten und mit einem Betrieb nach 1. oder 2. in einem funktionalen Zusammenhang stehen, wenn dem Betrieb im jeweiligen Bezugsjahr Wirtschaftsdünger aus diesem Betrieb oder sonst außerhalb des Betriebs anfallender\nWirtschaftsdünger zugeführt wird.\n\nDie Stoffstrombilanz ist spätestens bis sechs Monate nach Ende des Bezugszeitraums anzufertigen. Diese Excel-Anwendung des Landesbetriebes Landwirtschaft Hessen (LLH) hilft Ihnen bei der Anfertigung. Diese Datei wird auf den Seiten des LLH kontinuierlich aktualisiert. \nAchten Sie daher bitte darauf, immer mit der aktuellen Version zu arbeiten. Die jeweilige Versionsnummer wird am linken unteren Rand der Arbeitsblätter dargestellt.\n\n(Version 1.5)\n"]
[]
[]
[]
[]
[]
[]
["Grundsätzlich:"]
[null,null,"Graue Kästchen sind Eingabefelder"]
["dropdown-Auswahl",null,"Grüne Kästchen sind Auswahlfelder"]
[null,null,"Weiße Kästchen können nicht verändert werden"]
[null,null,"Orange Kästchen sind berechnete Felder"]
[null,null,"Gelbe Kästchen sind Ergebnisfelder"]

{"sheet":"Betriebsdaten","index":1,"n_rows":43,"n_cols":15,"rows_kept":43,"cut":false,"hidden":false,"merged":[[15,4,15,6],[7,4,7,6],[3,1,6,2],[4,4,4,6],[7,1,7,3],[14,4,14,6],[14,1,14,3],[8,1,8,3],[13,1,13,3],[12,1,12,3],[11,1,11,3],[1,0,1,6],[0,0,0,6],[10,4,10,6],[9,4,9,6],[8,4,8,6],[3,4,3,6],[10,1,10,3],[9,1,9,3],[6,4,6,6],[5,4,5,6],[3,0,7,0],[2,0,2,6],[17,1,18,3],[18,5,18,6],[38,1,38,2],[39,1,39,2],[31,1,31,2],[32,1,32,2],[33,1,33,2],[34,1,34,2],[35,1,35,2],[26,1,26,2],[27,1,27,2],[28,1,28,2],[29,1,29,2],[30,1,30,2],[22,1,22,2],[21,1,21,2],[36,1,36,2],[37,1,37,2],[40,1,40,2],[41,1,41,2],[20,1,20,5],[23,1,23,2],[24,1,24,2],[25,1,25,2]]}
["Jährliche betriebliche Stoffstrombilanz"]
["für Stickstoff (N) und Phosphat (P2O5)"]
[]
["1.","Eindeutige Bezeichnug des Betriebes:",null,"Name des Betriebes"]
[null,null,null,"Betriebsinhaber"]
[null,null,null,"Straße Nr."]
[null,null,null,"PLZ Ort"]
[null,"PI-Personenidentnummer (optional)",null,null,null,null,null,null,null,"01.","Januar",2012,null,"Großvieheinheiten je Tier bzw. Stallplatz"]
["2.","Landwirtschaftliche genutzte Fläche des Betriebes in Hektar:",null,null,null,null,null,null,null,"02.","Februar",2013,null,null,"GV je Tier\n bzw. Stallplatz\n und Jahr"]
["4.","Anzahl der im Bertieb gehaltenen Großvieheinheiten in GV:",null,null,{"$f":"IF(E19>0,E19,F43)","v":0},null,null,null,null,"03.","März",2014]
["5. ","Tierbesatzdichte im Betrieb in GV je Hektar:",null,null,{"$f":"IF(E9=0,E10,E10/E9)","v":0},null,null,null,null,"04.","April",2015,null,"Ponys und Kleinpferde",0.7]
["6. ","Beginn des festgelegten Bezugsjahres:",null,null,"01.","Juli",2018,null,null,"05.","Mai",2016,null,"Andere Pferde unter 3 Jahren",0.7]
["7. ","Ende des festgelegt Bezugjahres:",null,null,"30.","Juni",2019,null,null,"06.","Juni",2017,null,"Andere Pferede 3 Jahre alt und älter",1.1000000000000001]
["8. ","Datum der Erstellung:",null,null,"30.","Dezember",2019,null,null,"07.","Juli",2018,null,"Kälber und Jungrinder unter 1 Jahr",0.3]
[null,null,null,null,null,null,null,null,null,"08.","August",2019,null,"Jungrinder 1 bis unter 2 Jahren alt",0.7]
[null,null,null,null,null,null,null,null,null,"09.","September",2020,null,"Färsen, Milchkühe, Mutterkühe, Masttiere",1]
[null,null,null,null,null,null,null,null,null,"10.","Oktober",2021,null,"Schafe unter 1 Jahr einschl. Lämmer",0.05]
[null,"Wenn die Anzahl der Großvieheinheiten (GV) im Bezugsjahr bekannt ist, kann die Zahl direkt eingeben werden, ansonsten kann sie mit der Hilfstabelle berechnet werden.",null,null,null,null,null,null,null,"11.","November",2022,null,"Schafe 1 Jahr und älter",0.1]
[null,null,null,null,null,"GV im Bezugsjahr",null,null,null,"12.","Dezember",2023,null,"Ferkel",0.02]
[null,null,null,null,null,null,null,null,null,"13.",null,2024,null,"Schweine unter 50 kg Lebendgewicht (LG)",0.06]
[null,"Hilfstabelle: Berechnung Großvieheinheiten ",null,null,null,null,null,null,null,"14.",null,2025,null,"Mastschweine über 50 kg LG",0.16]
[null,"Tiere im Betrieb",null,"Anzahl","GV je Stück","GV",null,null,null,"15.",null,2026,null,"Zuchtschweine, Eber über 50 kg LG",0.3]
[null,null,null,null,{"$f":"IF(B23=\"\",\"\",VLOOKUP(B23,$N$10:$O$27,2,FALSE))","v":""},{"$f":"IF(B23=\"\",\"\",E23*D23)","v":""},null,null,null,"16.",null,2027,null,"Legehennen 1/2 Jahr und älter",4.0000000000000001E-3]
[null,null,null,null,{"$f":"IF(B24=\"\",\"\",VLOOKUP(B24,$N$10:$O$27,2,FALSE))","v":""},{"$f":"IF(B24=\"\",\"\",E24*D24)","v":""},null,null,null,"17.",null,2028,null,"Küken und Legehnenn unter 1/2 Jahr ",4.0000000000000001E-3]
[null,null,null,null,"","",null,null,null,"18.",null,2029,null,"Schlacht- und Masthänchen und -hühner",4.0000000000000001E-3]
[null,null,null,null,"","",null,null,null,"19.",null,2030,null,"Gänse insgesamt",4.0000000000000001E-3]
[null,null,null,null,"","",null,null,null,"20.",null,2031,null,"Truthühner insgesamt",4.0000000000000001E-3]
[null,null,null,null,"","",null,null,null,"21.",null,2032]
[null,null,null,null,"","",null,null,null,"22.",null,2033]
[null,null,null,null,"","",null,null,null,"23.",null,2034]
[null,null,null,null,"","",null,null,null,"24.",null,2035]
[null,null,null,null,"","",null,null,null,"25.",null,2036]
[null,null,null,null,"","",null,null,null,"26.",null,2037]
[null,null,null,null,"","",null,null,null,"27.",null,2038]
[null,null,null,null,"","",null,null,null,"28.",null,2039]
[null,null,null,null,"","",null,null,null,"29.",null,2040]
[null,null,null,null,"","",null,null,null,"30."]
[null,null,null,null,"","",null,null,null,"31."]
[null,null,null,null,"",""]
[null,null,null,null,"",""]
[null,null,null,null,"",""]
[null,null,null,null,"",""]
[null,null,null,null,"Summe",{"$f":"SUM(F23:F42)","v":0}]

{"sheet":"Zufuhr","index":2,"n_rows":137,"n_cols":8,"rows_kept":137,"cut":false,"hidden":false,"merged":[[0,1,0,7],[109,2,109,3],[109,0,110,0],[109,1,110,1],[109,4,110,4],[109,5,110,5],[109,6,110,6],[109,7,110,7]]}
[null,"Zufuhr"]
["Datum\n(optional)","Düngemittel","dt",null,"kg N/dt","kg P2O5/dt","kg N","kg P2O5"]
[null,null,null,null,{"$f":"IF(B3=\"\",\"\",VLOOKUP(B3,Handelsdünger,2,FALSE))","v":""},{"$f":"IF(B3=\"\",\"\",VLOOKUP(B3,Handelsdünger,3, FALSE))","v":""},{"$f":"IF(B3=\"\",\"\",E3*C3)","v":""},{"$f":"IF(B3=\"\",\"\",F3*C3)","v":""}]
[null,null,null,null,"","",{"$f":"IF(B4=\"\",\"\",E4*C4)","v":""},{"$f":"IF(B4=\"\",\"\",F4*C4)","v":""}]
[null,null,null,null,"","","",""]
[null,null,null,null,"","","",""]
[null,null,null,null,"","","",""]
[null,null,null,null,"","","",""]
[null,null,null,null,"","","",""]
[null,null,null,null,"","","",""]
[null,null,null,null,"","","",""]
[null,null,null,null,"","","",""]
[null,null,null,null,"","","",""]
[null,null,null,null,"","","",""]
[null,null,null,null,null,null,{"$f":"SUM(G3:G14)","v":0},{"$f":"SUM(H3:H14)","v":0}]
["Datum\n(optional)","Wirtschaftsdünger \n(tierischer Herkunft)","m³ \nbzw.\n t",null,"kg N/m³\nbzw\nkg/t","kg P2O5/m³\nbzw\nkg P2O5/t","kg N","kg P2O5"]
[null,null,null,null,{"$f":"IF(B17=\"\",\"\",VLOOKUP(B17,Wirtschaftsdünger2,6,FALSE))","v":""},{"$f":"IF(B17=\"\",\"\",VLOOKUP(B17,Wirtschaftsdünger2,7, FALSE))","v":""},{"$f":"IF(B17=\"\",\"\",E17*C17)","v":""},{"$f":"IF(B17=\"\",\"\",F17*C17)","v":""}]
[null,null,null,null,"","",{"$f":"IF(B18=\"\",\"\",E18*C18)","v":""},{"$f":"IF(B18=\"\",\"\",F18*C18)","v":""}]
[null,null,null,null,"","","",""]
[null,null,null,null,"","","",""]
[null,null,null,null,"","","",""]
[null,null,null,null,"","","",""]
[null,null,null,null,"","","",""]
[null,null,null,null,"","","",""]
[null,null,null,null,"","","",""]
[null,null,null,null,"","","",""]
[null,null,null,null,"","","",""]
[null,null,null,null,"","","",""]
[null,null,null,null,null,null,{"$f":"SUM(G17:G28)","v":0},{"$f":"SUM(H17:H28)","v":0}]
["Datum\n(optional)","sonstige organische Düngemittel","m³ \nbzw.\n t",null,"kg N/m³\nbzw\nkg/t","kg P2O5/m³\nbzw\nkg P2O5/t","kg N","kg P2O5"]
[null,null,null,null,{"$f":"IF(B31=\"\",\"\",VLOOKUP(B31,Wirtschaftsdünger2,6,FALSE))","v":""},{"$f":"IF(B31=\"\",\"\",VLOOKUP(B31,Wirtschaftsdünger,7, FALSE))","v":""},{"$f":"IF(B31=\"\",\"\",E31*C31)","v":""},{"$f":"IF(B31=\"\",\"\",F31*C31)","v":""}]
[null,null,null,null,"","",{"$f":"IF(B32=\"\",\"\",E32*C32)","v":""},{"$f":"IF(B32=\"\",\"\",F32*C32)","v":""}]
[null,null,null,null,"","","",""]
[null,null,null,null,"","","",""]
[null,null,null,null,"","","",""]
[null,null,null,null,"","","",""]
[null,null,null,null,"","","",""]
[null,null,null,null,"","","",""]
[null,null,null,null,"","","",""]
[null,null,null,null,"","","",""]
[null,null,null,null,"","","",""]
[null,null,null,null,"","","",""]
[null,null,null,null,null,null,{"$f":"SUM(G31:G42)","v":0},{"$f":"SUM(H31:H42)","v":0}]
["Datum\n(optional)","Bodenhilfsstoffe","dt",null,"kg N/dt","kg P2O5/dt","kg N","kg P2O5"]
[null,null,null,null,null,null,{"$f":"IF(B45=\"\",\"\",E45*C45)","v":""},{"$f":"IF(B45=\"\",\"\",F45*C45)","v":""}]
[null,null,null,null,null,null,{"$f":"IF(B46=\"\",\"\",E46*C46)","v":""},{"$f":"IF(B46=\"\",\"\",F46*C46)","v":""}]
[null,null,null,null,null,null,"",""]
[null,null,null,null,null,null,"",""]
[null,null,null,null,null,null,"",""]
[null,null,null,null,null,null,{"$f":"SUM(G45:G49)","v":0},{"$f":"SUM(H45:H49)","v":0}]
["Datum\n(optional)","Kultursubstrate","dt",null,"kg N/dt","kg P2O5/dt","kg N","kg P2O5"]
[null,null,null,null,null,null,{"$f":"IF(B52=\"\",\"\",E52*C52)","v":""},{"$f":"IF(B52=\"\",\"\",F52*C52)","v":""}]
[null,null,null,null,null,null,"",""]
[null,null,null,null,null,null,"",""]
[null,null,null,null,null,null,"",""]
[null,null,null,null,null,null,"",""]
[null,null,null,null,null,null,{"$f":"SUM(G52:G56)","v":0},{"$f":"SUM(H52:H56)","v":0}]
["Datum\n(optional)","Pflanzenhilfsmittel","dt",null,"kg N/dt","kg P2O5/dt","kg N","kg P2O5"]
[null,null,null,null,null,null,{"$f":"IF(B59=\"\",\"\",E59*C59)","v":""},{"$f":"IF(B59=\"\",\"\",F59*C59)","v":""}]
[null,null,null,null,null,null,"",""]
[null,null,null,null,null,null,"",""]
[null,null,null,null,null,null,"",""]
[null,null,null,null,null,null,"",""]
[null,null,null,null,null,null,{"$f":"SUM(G59:G63)","v":0},{"$f":"SUM(H59:H63)","v":0}]
["Datum\n(optional)","Futtermittel","t FM","TM %","kg N/t/TM \nbzw. \nkg N/t/FM","kg P2O5/t/TM \nbzw. \nkg P2O5/t/FM","kg N","kg P2O5"]
[null,null,null,{"$f":"IF(B66=\"\",\"\",VLOOKUP(B66,Futtermittel!$A$1:$C$209,2, FALSE))","v":""},{"$f":"IF(B66=\"\",\"\",VLOOKUP(B66,Futtermittel!$A$1:$C$209,3,FALSE))","v":""},{"$f":"IF(B66=\"\",\"\",VLOOKUP(B66,Futtermittel!$A$1:$D$209,4,FALSE))","v":""},{"$f":"IF(B66=\"\",\"\",IF(D66=\"FM\",C66*E66,(C66/100*D66)*E66))","v":""},{"$f":"IF(B66=\"\",\"\",IF(D66=\"FM\",C66*F66,(C66/100*D66)*F66))","v":""}]
[null,null,null,{"$f":"IF(B67=\"\",\"\",VLOOKUP(B67,Futtermittel!$A$1:$C$209,2, FALSE))","v":""},{"$f":"IF(B67=\"\",\"\",VLOOKUP(B67,Futtermittel!$A$1:$C$209,3,FALSE))","v":""},{"$f":"IF(B67=\"\",\"\",VLOOKUP(B67,Futtermittel!$A$1:$D$209,4,FALSE))","v":""},{"$f":"IF(B67=\"\",\"\",IF(D67=\"FM\",C67*E67,(C67/100*D67)*E67))","v":""},{"$f":"IF(B67=\"\",\"\",IF(D67=\"FM\",C67*F67,(C67/100*D67)*F67))","v":""}]
[null,null,null,{"$f":"IF(B68=\"\",\"\",VLOOKUP(B68,Futtermittel!$A$1:$C$209,2, FALSE))","v":""},{"$f":"IF(B68=\"\",\"\",VLOOKUP(B68,Futtermittel!$A$1:$C$209,3,FALSE))","v":""},{"$f":"IF(B68=\"\",\"\",VLOOKUP(B68,Futtermittel!$A$1:$D$209,4,FALSE))","v":""},"",""]
[null,null,null,{"$f":"IF(B69=\"\",\"\",VLOOKUP(B69,Futtermittel!$A$1:$C$209,2, FALSE))","v":""},{"$f":"IF(B69=\"\",\"\",VLOOKUP(B69,Futtermittel!$A$1:$C$209,3,FALSE))","v":""},{"$f":"IF(B69=\"\",\"\",VLOOKUP(B69,Futtermittel!$A$1:$D$209,4,FALSE))","v":""},"",""]
[null,null,null,{"$f":"IF(B70=\"\",\"\",VLOOKUP(B70,Futtermittel!$A$1:$C$209,2, FALSE))","v":""},{"$f":"IF(B70=\"\",\"\",VLOOKUP(B70,Futtermittel!$A$1:$C$209,3,FALSE))","v":""},{"$f":"IF(B70=\"\",\"\",VLOOKUP(B70,Futtermittel!$A$1:$D$209,4,FALSE))","v":""},"",""]
[null,null,null,{"$f":"IF(B71=\"\",\"\",VLOOKUP(B71,Futtermittel!$A$1:$C$209,2, FALSE))","v":""},{"$f":"IF(B71=\"\",\"\",VLOOKUP(B71,Futtermittel!$A$1:$C$209,3,FALSE))","v":""},{"$f":"IF(B71=\"\",\"\",VLOOKUP(B71,Futtermittel!$A$1:$D$209,4,FALSE))","v":""},"",""]
[null,null,null,{"$f":"IF(B72=\"\",\"\",VLOOKUP(B72,Futtermittel!$A$1:$C$209,2, FALSE))","v":""},{"$f":"IF(B72=\"\",\"\",VLOOKUP(B72,Futtermittel!$A$1:$C$209,3,FALSE))","v":""},{"$f":"IF(B72=\"\",\"\",VLOOKUP(B72,Futtermittel!$A$1:$D$209,4,FALSE))","v":""},"",""]
[null,null,null,{"$f":"IF(B73=\"\",\"\",VLOOKUP(B73,Futtermittel!$A$1:$C$209,2, FALSE))","v":""},{"$f":"IF(B73=\"\",\"\",VLOOKUP(B73,Futtermittel!$A$1:$C$209,3,FALSE))","v":""},{"$f":"IF(B73=\"\",\"\",VLOOKUP(B73,Futtermittel!$A$1:$D$209,4,FALSE))","v":""},"",""]
[null,null,null,{"$f":"IF(B74=\"\",\"\",VLOOKUP(B74,Futtermittel!$A$1:$C$209,2, FALSE))","v":""},{"$f":"IF(B74=\"\",\"\",VLOOKUP(B74,Futtermittel!$A$1:$C$209,3,FALSE))","v":""},{"$f":"IF(B74=\"\",\"\",VLOOKUP(B74,Futtermittel!$A$1:$D$209,4,FALSE))","v":""},"",""]
[null,null,null,{"$f":"IF(B75=\"\",\"\",VLOOKUP(B75,Futtermittel!$A$1:$C$209,2, FALSE))","v":""},{"$f":"IF(B75=\"\",\"\",VLOOKUP(B75,Futtermittel!$A$1:$C$209,3,FALSE))","v":""},{"$f":"IF(B75=\"\",\"\",VLOOKUP(B75,Futtermittel!$A$1:$D$209,4,FALSE))","v":""},"",""]
[null,null,null,{"$f":"IF(B76=\"\",\"\",VLOOKUP(B76,Futtermittel!$A$1:$C$209,2, FALSE))","v":""},{"$f":"IF(B76=\"\",\"\",VLOOKUP(B76,Futtermittel!$A$1:$C$209,3,FALSE))","v":""},{"$f":"IF(B76=\"\",\"\",VLOOKUP(B76,Futtermittel!$A$1:$D$209,4,FALSE))","v":""},"",""]
[null,null,null,{"$f":"IF(B77=\"\",\"\",VLOOKUP(B77,Futtermittel!$A$1:$C$209,2, FALSE))","v":""},{"$f":"IF(B77=\"\",\"\",VLOOKUP(B77,Futtermittel!$A$1:$C$209,3,FALSE))","v":""},{"$f":"IF(B77=\"\",\"\",VLOOKUP(B77,Futtermittel!$A$1:$D$209,4,FALSE))","v":""},"",""]
[null,null,null,{"$f":"IF(B78=\"\",\"\",VLOOKUP(B78,Futtermittel!$A$1:$C$209,2, FALSE))","v":""},{"$f":"IF(B78=\"\",\"\",VLOOKUP(B78,Futtermittel!$A$1:$C$209,3,FALSE))","v":""},{"$f":"IF(B78=\"\",\"\",VLOOKUP(B78,Futtermittel!$A$1:$D$209,4,FALSE))","v":""},"",""]
[null,null,null,{"$f":"IF(B79=\"\",\"\",VLOOKUP(B79,Futtermittel!$A$1:$C$209,2, FALSE))","v":""},{"$f":"IF(B79=\"\",\"\",VLOOKUP(B79,Futtermittel!$A$1:$C$209,3,FALSE))","v":""},{"$f":"IF(B79=\"\",\"\",VLOOKUP(B79,Futtermittel!$A$1:$D$209,4,FALSE))","v":""},"",""]
[null,null,null,{"$f":"IF(B80=\"\",\"\",VLOOKUP(B80,Futtermittel!$A$1:$C$209,2, FALSE))","v":""},{"$f":"IF(B80=\"\",\"\",VLOOKUP(B80,Futtermittel!$A$1:$C$209,3,FALSE))","v":""},{"$f":"IF(B80=\"\",\"\",VLOOKUP(B80,Futtermittel!$A$1:$D$209,4,FALSE))","v":""},"",""]
[null,null,null,null,null,null,{"$f":"SUM(G66:G80)","v":0},{"$f":"SUM(H66:H80)","v":0}]
["Datum\n(optional)","Saatgut und Pflanzgut\n(nur Getreide, Mais Kartoffeln und Körnerleguminosen)","dt",null,"kg N/dt","kg P2O5/dt","kg N","kg P2O5"]
[null,null,null,null,{"$f":"IF(B83=\"\",\"\",VLOOKUP(B83,pflProdukteSaatgut,2,FALSE))","v":""},{"$f":"IF(B83=\"\",\"\",VLOOKUP(B83,pflProdukteSaatgut,3, FALSE))","v":""},{"$f":"IF(B83=\"\",\"\",E83*C83)","v":""},{"$f":"IF(B83=\"\",\"\",C83*F83)","v":""}]
[null,null,null,null,"","",{"$f":"IF(B84=\"\",\"\",E84*C84)","v":""},{"$f":"IF(B84=\"\",\"\",C84*F84)","v":""}]
[null,null,null,null,"","","",""]
[null,null,null,null,"","","",""]
[null,null,null,null,"","","",""]
[null,null,null,null,"","","",""]
[null,null,null,null,"","","",""]
[null,null,null,null,"","","",""]
[null,null,null,null,"","","",""]
[null,null,null,null,"","","",""]
[null,null,null,null,"","","",""]
[null,null,null,null,"","","",""]
[null,null,null,null,null,null,{"$f":"SUM(G83:G94)","v":0},{"$f":"SUM(H83:H94)","v":0}]
["Datum\n(optional)","Landwirtschaftliche Nutztiere","dt",null,"kg N/dt","kg P2O5/dt","kg N","kg P2O5"]
[null,null,null,null,{"$f":"IF(B97=\"\",\"\",VLOOKUP(B97,tie_Produkte!$B$3:$E$97,2, FALSE))","v":""},{"$f":"IF(B97=\"\",\"\",VLOOKUP(B97,tie_Produkte!$B$3:$E$97,3,FALSE))","v":""},{"$f":"IF(B97=\"\",\"\",E97*C97)","v":""},{"$f":"IF(B97=\"\",\"\",C97*F97)","v":""}]
[null,null,null,null,{"$f":"IF(B98=\"\",\"\",VLOOKUP(B98,tie_Produkte!$B$3:$E$97,2, FALSE))","v":""},{"$f":"IF(B98=\"\",\"\",VLOOKUP(B98,tie_Produkte!$B$3:$E$97,3,FALSE))","v":""},{"$f":"IF(B98=\"\",\"\",E98*C98)","v":""},{"$f":"IF(B98=\"\",\"\",C98*F98)","v":""}]
[null,null,null,null,{"$f":"IF(B99=\"\",\"\",VLOOKUP(B99,tie_Produkte!$B$3:$E$97,2, FALSE))","v":""},{"$f":"IF(B99=\"\",\"\",VLOOKUP(B99,tie_Produkte!$B$3:$E$97,3,FALSE))","v":""},"",""]
[null,null,null,null,{"$f":"IF(B100=\"\",\"\",VLOOKUP(B100,tie_Produkte!$B$3:$E$97,2, FALSE))","v":""},{"$f":"IF(B100=\"\",\"\",VLOOKUP(B100,tie_Produkte!$B$3:$E$97,3,FALSE))","v":""},"",""]
[null,null,null,null,{"$f":"IF(B101=\"\",\"\",VLOOKUP(B101,tie_Produkte!$B$3:$E$97,2, FALSE))","v":""},{"$f":"IF(B101=\"\",\"\",VLOOKUP(B101,tie_Produkte!$B$3:$E$97,3,FALSE))","v":""},"",""]
[null,null,null,null,{"$f":"IF(B102=\"\",\"\",VLOOKUP(B102,tie_Produkte!$B$3:$E$97,2, FALSE))","v":""},{"$f":"IF(B102=\"\",\"\",VLOOKUP(B102,tie_Produkte!$B$3:$E$97,3,FALSE))","v":""},"",""]
[null,null,null,null,{"$f":"IF(B103=\"\",\"\",VLOOKUP(B103,tie_Produkte!$B$3:$E$97,2, FALSE))","v":""},{"$f":"IF(B103=\"\",\"\",VLOOKUP(B103,tie_Produkte!$B$3:$E$97,3,FALSE))","v":""},"",""]
[null,null,null,null,{"$f":"IF(B104=\"\",\"\",VLOOKUP(B104,tie_Produkte!$B$3:$E$97,2, FALSE))","v":""},{"$f":"IF(B104=\"\",\"\",VLOOKUP(B104,tie_Produkte!$B$3:$E$97,3,FALSE))","v":""},"",""]
[null,null,null,null,{"$f":"IF(B105=\"\",\"\",VLOOKUP(B105,tie_Produkte!$B$3:$E$97,2, FALSE))","v":""},{"$f":"IF(B105=\"\",\"\",VLOOKUP(B105,tie_Produkte!$B$3:$E$97,3,FALSE))","v":""},"",""]
[null,null,null,null,{"$f":"IF(B106=\"\",\"\",VLOOKUP(B106,tie_Produkte!$B$3:$E$97,2, FALSE))","v":""},{"$f":"IF(B106=\"\",\"\",VLOOKUP(B106,tie_Produkte!$B$3:$E$97,3,FALSE))","v":""},"",""]
[null,null,null,null,{"$f":"IF(B107=\"\",\"\",VLOOKUP(B107,tie_Produkte!$B$3:$E$97,2, FALSE))","v":""},{"$f":"IF(B107=\"\",\"\",VLOOKUP(B107,tie_Produkte!$B$3:$E$97,3,FALSE))","v":""},"",""]
[null,null,null,null,{"$f":"IF(B108=\"\",\"\",VLOOKUP(B108,tie_Produkte!$B$3:$E$97,2, FALSE))","v":""},{"$f":"IF(B108=\"\",\"\",VLOOKUP(B108,tie_Produkte!$B$3:$E$97,3,FALSE))","v":""},"",""]
[null,null,null,null,null,null,{"$f":"SUM(G97:G108)","v":0},{"$f":"SUM(H97:H108)","v":0}]
["Datum\n(optional)","Legume N-Bindung","oder",null,"kg N/ha","kg N/dt FM","kg N"]
[null,null,"ha","Ertrag\ndt/FM"]
[null,null,null,null,{"$f":"IF(B112=\"\",\"\",VLOOKUP(B112,Leguminosen,6,FALSE))","v":""},{"$f":"IF(B112=\"\",\"\",VLOOKUP(B112,Leguminosen,7,FALSE))","v":""},{"$f":"IF(B112=\"\",\"\",IF(C112 >0.1,E112*C112,(D112*F112)))","v":""}]
[null,null,null,null,"","",{"$f":"IF(B113=\"\",\"\",IF(C113 >0.1,E113*C113,(D113*F113)))","v":""}]
[null,null,null,null,"","",""]
[null,null,null,null,"","",""]
[null,null,null,null,"","",""]
[null,null,null,null,"","",""]
[null,null,null,null,"","",""]
[null,null,null,null,"","",""]
[null,null,null,null,"","",""]
[null,null,null,null,null,null,{"$f":"SUM(G112:G120)","v":0}]
["Datum\n(optional)","Sonstige Stoffe","dt",null,"kg N/dt","kg P2O5/dt","kg N","kg P2O5"]
[null,null,null,null,null,null,{"$f":"IF(B123=\"\",\"\",E123*C123)","v":""},{"$f":"IF(B123=\"\",\"\",C123*F123)","v":""}]
[null,null,null,null,null,null,"",""]
[null,null,null,null,null,null,"",""]
[null,null,null,null,null,null,"",""]
[null,null,null,null,null,null,"",""]
[null,null,null,null,null,null,"",""]
[null,null,null,null,null,null,"",""]
[null,null,null,null,null,null,"",""]
[null,null,null,null,null,null,"",""]
[null,null,null,null,null,null,"",""]
[null,null,null,null,null,null,"",""]
[null,null,null,null,null,null,"",""]
[null,null,null,null,null,null,{"$f":"SUM(G123:G134)","v":0},{"$f":"SUM(H123:H134)","v":0}]
[]
[null,"Summe der Nährstoffzufuhr je Betreib in kg N bzw. kg P2O5",null,null,null,null,{"$f":"G135+G121+G109+G95+G81+G64+G57+G50+G43+G29+G15","v":0},{"$f":"H15+H29+H50+H57+H64+H81+H95+H109+H135+H43","v":0}]

{"sheet":"Abgabe","index":3,"n_rows":152,"n_cols":8,"rows_kept":152,"cut":false,"hidden":false,"merged":[[0,1,0,7]]}
[null,"Abgabe"]
["Datum\n(optional)","Pflanzliche Erzeugnisse","dt",null,"kg N/dt","kg P2O5/dt","kg N","kg P2O5"]
[null,null,null,null,{"$f":"IF(B3=\"\",\"\",VLOOKUP(B3,pflProdukte,2,FALSE))","v":""},{"$f":"IF(B3=\"\",\"\",VLOOKUP(B3,pflProdukte,3,FALSE))","v":""},{"$f":"IF(B3=\"\",\"\",E3*C3)","v":""},{"$f":"IF(B3=\"\",\"\",F3*C3)","v":""}]
[null,null,null,null,"","",{"$f":"IF(B4=\"\",\"\",E4*C4)","v":""},{"$f":"IF(B4=\"\",\"\",F4*C4)","v":""}]
[null,null,null,null,"","",{"$f":"IF(B5=\"\",\"\",E5*C5)","v":""},{"$f":"IF(B5=\"\",\"\",F5*C5)","v":""}]
[null,null,null,null,"","","",""]
[null,null,null,null,"","","",""]
[null,null,null,null,"","","",""]
[null,null,null,null,"","","",""]
[null,null,null,null,"","","",""]
[null,null,null,null,"","","",""]
[null,null,null,null,"","","",""]
[null,null,null,null,"","","",""]
[null,null,null,null,"","","",""]
[null,null,null,null,null,null,{"$f":"SUM(G3:G14)","v":0},{"$f":"SUM(H3:H14)","v":0}]
["Datum\n(optional)","Tierische Erzeugnisse","dt",null,"kg N/dt","kg P2O5/dt","kg N","kg P2O5"]
[null,null,null,null,{"$f":"IF(B17=\"\",\"\",VLOOKUP(B17,tie_Produkte!$B$3:$E$97,2, FALSE))","v":""},{"$f":"IF(B17=\"\",\"\",VLOOKUP(B17,tie_Produkte!$B$3:$E$97,3,FALSE))","v":""},{"$f":"IF(B17=\"\",\"\",E17*C17)","v":""},{"$f":"IF(B17=\"\",\"\",C17*F17)","v":""}]
[null,null,null,null,{"$f":"IF(B18=\"\",\"\",VLOOKUP(B18,tie_Produkte!$B$3:$E$97,2, FALSE))","v":""},{"$f":"IF(B18=\"\",\"\",VLOOKUP(B18,tie_Produkte!$B$3:$E$97,3,FALSE))","v":""},{"$f":"IF(B18=\"\",\"\",E18*C18)","v":""},{"$f":"IF(B18=\"\",\"\",C18*F18)","v":""}]
[null,null,null,null,{"$f":"IF(B19=\"\",\"\",VLOOKUP(B19,tie_Produkte!$B$3:$E$97,2, FALSE))","v":""},{"$f":"IF(B19=\"\",\"\",VLOOKUP(B19,tie_Produkte!$B$3:$E$97,3,FALSE))","v":""},"",""]
[null,null,null,null,{"$f":"IF(B20=\"\",\"\",VLOOKUP(B20,tie_Produkte!$B$3:$E$97,2, FALSE))","v":""},{"$f":"IF(B20=\"\",\"\",VLOOKUP(B20,tie_Produkte!$B$3:$E$97,3,FALSE))","v":""},"",""]
[null,null,null,null,{"$f":"IF(B21=\"\",\"\",VLOOKUP(B21,tie_Produkte!$B$3:$E$97,2, FALSE))","v":""},{"$f":"IF(B21=\"\",\"\",VLOOKUP(B21,tie_Produkte!$B$3:$E$97,3,FALSE))","v":""},"",""]
[null,null,null,null,{"$f":"IF(B22=\"\",\"\",VLOOKUP(B22,tie_Produkte!$B$3:$E$97,2, FALSE))","v":""},{"$f":"IF(B22=\"\",\"\",VLOOKUP(B22,tie_Produkte!$B$3:$E$97,3,FALSE))","v":""},"",""]
[null,null,null,null,{"$f":"IF(B23=\"\",\"\",VLOOKUP(B23,tie_Produkte!$B$3:$E$97,2, FALSE))","v":""},{"$f":"IF(B23=\"\",\"\",VLOOKUP(B23,tie_Produkte!$B$3:$E$97,3,FALSE))","v":""},"",""]
[null,null,null,null,{"$f":"IF(B24=\"\",\"\",VLOOKUP(B24,tie_Produkte!$B$3:$E$97,2, FALSE))","v":""},{"$f":"IF(B24=\"\",\"\",VLOOKUP(B24,tie_Produkte!$B$3:$E$97,3,FALSE))","v":""},"",""]
[null,null,null,null,{"$f":"IF(B25=\"\",\"\",VLOOKUP(B25,tie_Produkte!$B$3:$E$97,2, FALSE))","v":""},{"$f":"IF(B25=\"\",\"\",VLOOKUP(B25,tie_Produkte!$B$3:$E$97,3,FALSE))","v":""},"",""]
[null,null,null,null,{"$f":"IF(B26=\"\",\"\",VLOOKUP(B26,tie_Produkte!$B$3:$E$97,2, FALSE))","v":""},{"$f":"IF(B26=\"\",\"\",VLOOKUP(B26,tie_Produkte!$B$3:$E$97,3,FALSE))","v":""},"",""]
[null,null,null,null,{"$f":"IF(B27=\"\",\"\",VLOOKUP(B27,tie_Produkte!$B$3:$E$97,2, FALSE))","v":""},{"$f":"IF(B27=\"\",\"\",VLOOKUP(B27,tie_Produkte!$B$3:$E$97,3,FALSE))","v":""},"",""]
[null,null,null,null,{"$f":"IF(B28=\"\",\"\",VLOOKUP(B28,tie_Produkte!$B$3:$E$97,2, FALSE))","v":""},{"$f":"IF(B28=\"\",\"\",VLOOKUP(B28,tie_Produkte!$B$3:$E$97,3,FALSE))","v":""},"",""]
[null,null,null,null,null,null,{"$f":"SUM(G17:G28)","v":0},{"$f":"SUM(H17:H28)","v":0}]
["Datum\n(optional)","Düngemittel","dt",null,"kg N/dt","kg P2O5/dt","kg N","kg P2O5"]
[null,null,null,null,{"$f":"IF(B31=\"\",\"\",VLOOKUP(B31,Handelsdünger,2,FALSE))","v":""},{"$f":"IF(B31=\"\",\"\",VLOOKUP(B31,Handelsdünger,3, FALSE))","v":""},{"$f":"IF(B31=\"\",\"\",E31*C31)","v":""},{"$f":"IF(B31=\"\",\"\",F31*C31)","v":""}]
[null,null,null,null,"","",{"$f":"IF(B32=\"\",\"\",E32*C32)","v":""},{"$f":"IF(B32=\"\",\"\",F32*C32)","v":""}]
[null,null,null,null,"","",{"$f":"IF(B33=\"\",\"\",E33*C33)","v":""},{"$f":"IF(B33=\"\",\"\",F33*C33)","v":""}]
[null,null,null,null,"","","",""]
[null,null,null,null,"","","",""]
[null,null,null,null,"","","",""]
[null,null,null,null,"","","",""]
[null,null,null,null,"","","",""]
[null,null,null,null,"","","",""]
[null,null,null,null,"","","",""]
[null,null,null,null,"","","",""]
[null,null,null,null,"","","",""]
[null,null,null,null,null,null,{"$f":"SUM(G31:G42)","v":0},{"$f":"SUM(H31:H42)","v":0}]
["Datum\n(optional)","Wirtschaftsdünger \n(tierischer Herkunft)","m³ \nbzw.\nt",null,"kg N/m³\nbzw\nkg/t","kg P2O5/m³\nbzw\nkg P2O5/t","kg N","kg P2O5"]
[null,null,null,null,{"$f":"IF(B45=\"\",\"\",VLOOKUP(B45,Wirtschaftsdünger2,6,FALSE))","v":""},{"$f":"IF(B45=\"\",\"\",VLOOKUP(B45,Wirtschaftsdünger2,7, FALSE))","v":""},{"$f":"IF(B45=\"\",\"\",E45*C45)","v":""},{"$f":"IF(B45=\"\",\"\",F45*C45)","v":""}]
[null,null,null,null,"","",{"$f":"IF(B46=\"\",\"\",E46*C46)","v":""},{"$f":"IF(B46=\"\",\"\",F46*C46)","v":""}]
[null,null,null,null,"","","",""]
[null,null,null,null,"","","",""]
[null,null,null,null,"","","",""]
[null,null,null,null,"","","",""]
[null,null,null,null,"","","",""]
[null,null,null,null,"","","",""]
[null,null,null,null,"","","",""]
[null,null,null,null,"","","",""]
[null,null,null,null,"","","",""]
[null,null,null,null,"","","",""]
[null,null,null,null,null,null,{"$f":"SUM(G45:G56)","v":0},{"$f":"SUM(H45:H56)","v":0}]
["Datum\n(optional)","sonstige organische Düngemittel","m³ \nbzw.\nt",null,"kg N/m³\nbzw\nkg/t","kg P2O5/m³\nbzw\nkg P2O5/t","kg N","kg P2O5"]
[null,null,null,null,{"$f":"IF(B59=\"\",\"\",VLOOKUP(B59,Wirtschaftsdünger2,6,FALSE))","v":""},{"$f":"IF(B59=\"\",\"\",VLOOKUP(B59,Wirtschaftsdünger2,7, FALSE))","v":""},{"$f":"IF(B59=\"\",\"\",E59*C59)","v":""},{"$f":"IF(B59=\"\",\"\",F59*C59)","v":""}]
[null,null,null,null,"","",{"$f":"IF(B60=\"\",\"\",E60*C60)","v":""},{"$f":"IF(B60=\"\",\"\",F60*C60)","v":""}]
[null,null,null,null,"","","",""]
[null,null,null,null,"","","",""]
[null,null,null,null,"","","",""]
[null,null,null,null,"","","",""]
[null,null,null,null,"","","",""]
[null,null,null,null,"","","",""]
[null,null,null,null,"","","",""]
[null,null,null,null,"","","",""]
[null,null,null,null,"","","",""]
[null,null,null,null,"","","",""]
[null,null,null,null,null,null,{"$f":"SUM(G59:G70)","v":0},{"$f":"SUM(H59:H70)","v":0}]
["Datum\n(optional)","Bodenhilfsstoffe","dt",null,"kg N/dt","kg P2O5/dt","kg N","kg P2O5"]
[null,null,null,null,null,null,{"$f":"IF(B73=\"\",\"\",E73*C73)","v":""},{"$f":"IF(B73=\"\",\"\",F73*C73)","v":""}]
[null,null,null,null,null,null,{"$f":"IF(B74=\"\",\"\",E74*C74)","v":""},{"$f":"IF(B74=\"\",\"\",F74*C74)","v":""}]
[null,null,null,null,null,null,"",""]
[null,null,null,null,null,null,"",""]
[null,null,null,null,null,null,"",""]
[null,null,null,null,null,null,{"$f":"SUM(G73:G77)","v":0},{"$f":"SUM(H73:H77)","v":0}]
["Datum\n(optional)","Kultursubstrate","dt",null,"kg N/dt","kg P2O5/dt","kg N","kg P2O5"]
[null,null,null,null,null,null,{"$f":"IF(B80=\"\",\"\",E80*C80)","v":""},{"$f":"IF(B80=\"\",\"\",F80*C80)","v":""}]
[null,null,null,null,null,null,{"$f":"IF(B81=\"\",\"\",E81*C81)","v":""},{"$f":"IF(B81=\"\",\"\",F81*C81)","v":""}]
[null,null,null,null,null,null,"",""]
[null,null,null,null,null,null,"",""]
[null,null,null,null,null,null,"",""]
[null,null,null,null,null,null,{"$f":"SUM(G80:G84)","v":0},{"$f":"SUM(H80:H84)","v":0}]
["Datum\n(optional)","Pflanzenhilfsmittel","dt",null,"kg N/dt","kg P2O5/dt","kg N","kg P2O5"]
[null,null,null,null,null,null,{"$f":"IF(B87=\"\",\"\",E87*C87)","v":""},{"$f":"IF(B87=\"\",\"\",F87*C87)","v":""}]
[null,null,null,null,null,null,"",""]
[null,null,null,null,null,null,"",""]
[null,null,null,null,null,null,"",""]
[null,null,null,null,null,null,"",""]
[null,null,null,null,null,null,{"$f":"SUM(G87:G91)","v":0},{"$f":"SUM(H87:H91)","v":0}]
["Datum\n(optional)","Futtermittel","t FM","TM %","kg N/t/TM","kg P2O5/t/TM","kg N","kg P2O5"]
[null,null,null,{"$f":"IF(B94=\"\",\"\",VLOOKUP(B94,Futtermittel!$A$2:$C$91,2, FALSE))","v":""},{"$f":"IF(B94=\"\",\"\",VLOOKUP(B94,Futtermittel!$A$2:$C$91,3,FALSE))","v":""},{"$f":"IF(B94=\"\",\"\",VLOOKUP(B94,Futtermittel!$A$2:$D$91,4,FALSE))","v":""},{"$f":"IF(B94=\"\",\"\",(C94/100*D94)*E94)","v":""},{"$f":"IF(B94=\"\",\"\",(C94/100*D94)*F94)","v":""}]
[null,null,null,{"$f":"IF(B95=\"\",\"\",VLOOKUP(B95,Futtermittel!$A$2:$C$91,2, FALSE))","v":""},{"$f":"IF(B95=\"\",\"\",VLOOKUP(B95,Futtermittel!$A$2:$C$91,3,FALSE))","v":""},{"$f":"IF(B95=\"\",\"\",VLOOKUP(B95,Futtermittel!$A$2:$D$91,4,FALSE))","v":""},{"$f":"IF(B95=\"\",\"\",(C95/100*D95)*E95)","v":""},{"$f":"IF(B95=\"\",\"\",(C95/100*D95)*F95)","v":""}]
[null,null,null,{"$f":"IF(B96=\"\",\"\",VLOOKUP(B96,Futtermittel!$A$2:$C$91,2, FALSE))","v":""},{"$f":"IF(B96=\"\",\"\",VLOOKUP(B96,Futtermittel!$A$2:$C$91,3,FALSE))","v":""},{"$f":"IF(B96=\"\",\"\",VLOOKUP(B96,Futtermittel!$A$2:$D$91,4,FALSE))","v":""},"",""]
[null,null,null,{"$f":"IF(B97=\"\",\"\",VLOOKUP(B97,Futtermittel!$A$2:$C$91,2, FALSE))","v":""},{"$f":"IF(B97=\"\",\"\",VLOOKUP(B97,Futtermittel!$A$2:$C$91,3,FALSE))","v":""},{"$f":"IF(B97=\"\",\"\",VLOOKUP(B97,Futtermittel!$A$2:$D$91,4,FALSE))","v":""},"",""]
[null,null,null,{"$f":"IF(B98=\"\",\"\",VLOOKUP(B98,Futtermittel!$A$2:$C$91,2, FALSE))","v":""},{"$f":"IF(B98=\"\",\"\",VLOOKUP(B98,Futtermittel!$A$2:$C$91,3,FALSE))","v":""},{"$f":"IF(B98=\"\",\"\",VLOOKUP(B98,Futtermittel!$A$2:$D$91,4,FALSE))","v":""},"",""]
[null,null,null,{"$f":"IF(B99=\"\",\"\",VLOOKUP(B99,Futtermittel!$A$2:$C$91,2, FALSE))","v":""},{"$f":"IF(B99=\"\",\"\",VLOOKUP(B99,Futtermittel!$A$2:$C$91,3,FALSE))","v":""},{"$f":"IF(B99=\"\",\"\",VLOOKUP(B99,Futtermittel!$A$2:$D$91,4,FALSE))","v":""},"",""]
[null,null,null,{"$f":"IF(B100=\"\",\"\",VLOOKUP(B100,Futtermittel!$A$2:$C$91,2, FALSE))","v":""},{"$f":"IF(B100=\"\",\"\",VLOOKUP(B100,Futtermittel!$A$2:$C$91,3,FALSE))","v":""},{"$f":"IF(B100=\"\",\"\",VLOOKUP(B100,Futtermittel!$A$2:$D$91,4,FALSE))","v":""},"",""]
[null,null,null,{"$f":"IF(B101=\"\",\"\",VLOOKUP(B101,Futtermittel!$A$2:$C$91,2, FALSE))","v":""},{"$f":"IF(B101=\"\",\"\",VLOOKUP(B101,Futtermittel!$A$2:$C$91,3,FALSE))","v":""},{"$f":"IF(B101=\"\",\"\",VLOOKUP(B101,Futtermittel!$A$2:$D$91,4,FALSE))","v":""},"",""]
[null,null,null,{"$f":"IF(B102=\"\",\"\",VLOOKUP(B102,Futtermittel!$A$2:$C$91,2, FALSE))","v":""},{"$f":"IF(B102=\"\",\"\",VLOOKUP(B102,Futtermittel!$A$2:$C$91,3,FALSE))","v":""},{"$f":"IF(B102=\"\",\"\",VLOOKUP(B102,Futtermittel!$A$2:$D$91,4,FALSE))","v":""},"",""]
[null,null,null,{"$f":"IF(B103=\"\",\"\",VLOOKUP(B103,Futtermittel!$A$2:$C$91,2, FALSE))","v":""},{"$f":"IF(B103=\"\",\"\",VLOOKUP(B103,Futtermittel!$A$2:$C$91,3,FALSE))","v":""},{"$f":"IF(B103=\"\",\"\",VLOOKUP(B103,Futtermittel!$A$2:$D$91,4,FALSE))","v":""},"",""]
[null,null,null,{"$f":"IF(B104=\"\",\"\",VLOOKUP(B104,Futtermittel!$A$2:$C$91,2, FALSE))","v":""},{"$f":"IF(B104=\"\",\"\",VLOOKUP(B104,Futtermittel!$A$2:$C$91,3,FALSE))","v":""},{"$f":"IF(B104=\"\",\"\",VLOOKUP(B104,Futtermittel!$A$2:$D$91,4,FALSE))","v":""},"",""]
[null,null,null,{"$f":"IF(B105=\"\",\"\",VLOOKUP(B105,Futtermittel!$A$2:$C$91,2, FALSE))","v":""},{"$f":"IF(B105=\"\",\"\",VLOOKUP(B105,Futtermittel!$A$2:$C$91,3,FALSE))","v":""},{"$f":"IF(B105=\"\",\"\",VLOOKUP(B105,Futtermittel!$A$2:$D$91,4,FALSE))","v":""},"",""]
[null,null,null,null,null,null,{"$f":"SUM(G94:G105)","v":0},{"$f":"SUM(H94:H105)","v":0}]
["Datum\n(optional)","Saatgut und Pflanzgut\n(nur Getreide, Mais Kartoffeln und Körnerleguminosen)","dt",null,"kg N/dt","kg P2O5/dt","kg N","kg P2O5"]
[null,null,null,null,{"$f":"IF($B108=\"\",\"\",VLOOKUP($B108,pflProdukteSaatgut,2,FALSE))","v":""},{"$f":"IF($B108=\"\",\"\",VLOOKUP($B108,pflProdukteSaatgut,3,FALSE))","v":""},{"$f":"IF(B108=\"\",\"\",E108*C108)","v":""},{"$f":"IF(B108=\"\",\"\",F108*C108)","v":""}]
[null,null,null,null,"","","",""]
[null,null,null,null,"","","",""]
[null,null,null,null,"","","",""]
[null,null,null,null,"","","",""]
[null,null,null,null,"","","",""]
[null,null,null,null,"","","",""]
[null,null,null,null,"","","",""]
[null,null,null,null,"","","",""]
[null,null,null,null,"","","",""]
[null,null,null,null,"","","",""]
[null,null,null,null,"","","",""]
[null,null,null,null,null,null,{"$f":"SUM(G108:G119)","v":0},{"$f":"SUM(H108:H119)","v":0}]
["Datum\n(optional)","Landwirtschaftliche Nutztiere","dt",null,"kg N/dt","kg P2O5/dt","kg N","kg P2O5"]
[null,null,null,null,{"$f":"IF(B122=\"\",\"\",VLOOKUP(B122,tie_Produkte!$B$3:$E$97,2, FALSE))","v":""},{"$f":"IF(B122=\"\",\"\",VLOOKUP(B122,tie_Produkte!$B$3:$E$97,3,FALSE))","v":""},{"$f":"IF(B122=\"\",\"\",E122*C122)","v":""},{"$f":"IF(B122=\"\",\"\",C122*F122)","v":""}]
[null,null,null,null,{"$f":"IF(B123=\"\",\"\",VLOOKUP(B123,tie_Produkte!$B$3:$E$97,2, FALSE))","v":""},{"$f":"IF(B123=\"\",\"\",VLOOKUP(B123,tie_Produkte!$B$3:$E$97,3,FALSE))","v":""},"",""]
[null,null,null,null,{"$f":"IF(B124=\"\",\"\",VLOOKUP(B124,tie_Produkte!$B$3:$E$97,2, FALSE))","v":""},{"$f":"IF(B124=\"\",\"\",VLOOKUP(B124,tie_Produkte!$B$3:$E$97,3,FALSE))","v":""},"",""]
[null,null,null,null,{"$f":"IF(B125=\"\",\"\",VLOOKUP(B125,tie_Produkte!$B$3:$E$97,2, FALSE))","v":""},{"$f":"IF(B125=\"\",\"\",VLOOKUP(B125,tie_Produkte!$B$3:$E$97,3,FALSE))","v":""},"",""]
[null,null,null,null,{"$f":"IF(B126=\"\",\"\",VLOOKUP(B126,tie_Produkte!$B$3:$E$97,2, FALSE))","v":""},{"$f":"IF(B126=\"\",\"\",VLOOKUP(B126,tie_Produkte!$B$3:$E$97,3,FALSE))","v":""},"",""]
[null,null,null,null,{"$f":"IF(B127=\"\",\"\",VLOOKUP(B127,tie_Produkte!$B$3:$E$97,2, FALSE))","v":""},{"$f":"IF(B127=\"\",\"\",VLOOKUP(B127,tie_Produkte!$B$3:$E$97,3,FALSE))","v":""},"",""]
[null,null,null,null,{"$f":"IF(B128=\"\",\"\",VLOOKUP(B128,tie_Produkte!$B$3:$E$97,2, FALSE))","v":""},{"$f":"IF(B128=\"\",\"\",VLOOKUP(B128,tie_Produkte!$B$3:$E$97,3,FALSE))","v":""},"",""]
[null,null,null,null,{"$f":"IF(B129=\"\",\"\",VLOOKUP(B129,tie_Produkte!$B$3:$E$97,2, FALSE))","v":""},{"$f":"IF(B129=\"\",\"\",VLOOKUP(B129,tie_Produkte!$B$3:$E$97,3,FALSE))","v":""},"",""]
[null,null,null,null,{"$f":"IF(B130=\"\",\"\",VLOOKUP(B130,tie_Produkte!$B$3:$E$97,2, FALSE))","v":""},{"$f":"IF(B130=\"\",\"\",VLOOKUP(B130,tie_Produkte!$B$3:$E$97,3,FALSE))","v":""},"",""]
[null,null,null,null,{"$f":"IF(B131=\"\",\"\",VLOOKUP(B131,tie_Produkte!$B$3:$E$97,2, FALSE))","v":""},{"$f":"IF(B131=\"\",\"\",VLOOKUP(B131,tie_Produkte!$B$3:$E$97,3,FALSE))","v":""},"",""]
[null,null,null,null,{"$f":"IF(B132=\"\",\"\",VLOOKUP(B132,tie_Produkte!$B$3:$E$97,2, FALSE))","v":""},{"$f":"IF(B132=\"\",\"\",VLOOKUP(B132,tie_Produkte!$B$3:$E$97,3,FALSE))","v":""},"",""]
[null,null,null,null,{"$f":"IF(B133=\"\",\"\",VLOOKUP(B133,tie_Produkte!$B$3:$E$97,2, FALSE))","v":""},{"$f":"IF(B133=\"\",\"\",VLOOKUP(B133,tie_Produkte!$B$3:$E$97,3,FALSE))","v":""},"",""]
[null,null,null,null,null,null,{"$f":"SUM(G122:G133)","v":0},{"$f":"SUM(H122:H133)","v":0}]
["Datum\n(optional)","Sonstige Stoffe","dt",null,"kg N/dt","kg P2O5/dt","kg N","kg P2O5"]
[null,null,null,null,null,null,{"$f":"IF(B136=\"\",\"\",E136*C136)","v":""},{"$f":"IF(B136=\"\",\"\",C136*F136)","v":""}]
[null,null,null,null,null,null,"",""]
[null,null,null,null,null,null,"",""]
[null,null,null,null,null,null,"",""]
[null,null,null,null,null,null,"",""]
[null,null,null,null,null,null,"",""]
[null,null,null,null,null,null,"",""]
[null,null,null,null,null,null,"",""]
[null,null,null,null,null,null,"",""]
[null,null,null,null,null,null,"",""]
[null,null,null,null,null,null,"",""]
[null,null,null,null,null,null,"",""]
[null,null,null,null,null,null,"",""]
[null,null,null,null,null,null,"",""]
[null,null,null,null,null,null,{"$f":"SUM(G136:G149)","v":0},{"$f":"SUM(H136:H149)","v":0}]
[]
[null,"Summe der Nährstoffabfuhr je Betreib in kg N bzw. kg P2O5",null,null,null,null,{"$f":"G150+G134+G120+G106+G92+G85+G78+G71+G57+G43+G29+G15","v":0},{"$f":"H150+H134+H120+H106+H92+H85+H78+H71+H57+H43+H29+H15","v":0}]

{"sheet":"Stoffstrombilanz Einzeljahr ","index":4,"n_rows":33,"n_cols":10,"rows_kept":33,"cut":false,"hidden":false,"merged":[[27,4,27,7],[30,4,31,9],[12,1,12,4],[11,1,11,4],[10,1,10,4],[24,4,24,7],[25,4,25,7],[26,4,26,7],[28,4,28,7],[29,4,29,7],[19,4,19,7],[20,4,20,7],[21,4,21,7],[22,4,22,7],[23,4,23,7],[14,4,14,7],[15,4,15,7],[16,4,16,7],[17,4,17,7],[18,4,18,7],[2,0,6,0],[11,7,11,8],[10,7,10,8],[6,5,6,9],[3,5,3,9],[5,5,5,9],[4,5,4,9],[4,2,4,4],[3,2,3,4],[2,2,2,4],[9,1,9,4],[0,1,0,9],[1,1,1,9],[32,3,32,9],[13,1,13,9],[2,5,2,9],[7,5,7,9],[8,5,8,9],[9,5,9,9],[2,1,5,1],[8,1,8,4],[7,1,7,4],[6,1,6,4],[5,2,5,4],[10,5,10,6],[11,5,11,6],[12,5,12,6]]}
[null,"Stoffstrombilanz - Einzeljahr"]
[]
["1.",{"$f":"Betriebsdaten!B4","v":"Eindeutige Bezeichnug des Betriebes:"},"Betriebsname",null,null,{"$f":"IF(Betriebsdaten!E4=\"\",\"\",Betriebsdaten!E4)","v":""}]
[null,null,"Betriebsinhaber",null,null,{"$f":"IF(Betriebsdaten!E5=\"\",\"\",Betriebsdaten!E5)","v":""}]
[null,null,"Straße Nr.",null,null,{"$f":"IF(Betriebsdaten!E6=\"\",\"\",Betriebsdaten!E6)","v":""}]
[null,null,"PLZ Ort",null,null,{"$f":"IF(Betriebsdaten!E7=\"\",\"\",Betriebsdaten!E7)","v":""}]
[null,"PI-Personenidentnummer (optional)",null,null,null,{"$f":"IF(Betriebsdaten!E8=\"\",\"\",Betriebsdaten!E8)","v":""}]
["2.",{"$f":"Betriebsdaten!B9","v":"Landwirtschaftliche genutzte Fläche des Betriebes in Hektar:"},null,null,null,{"$f":"Betriebsdaten!E9","v":0}]
["3.",{"$f":"Betriebsdaten!B10","v":"Anzahl der im Bertieb gehaltenen Großvieheinheiten in GV:"},null,null,null,{"$f":"Betriebsdaten!E10","v":0}]
["4.",{"$f":"Betriebsdaten!B11","v":"Tierbesatzdichte im Betrieb in GV je Hektar:"},null,null,null,{"$f":"Betriebsdaten!E11","v":0}]
["5.",{"$f":"Betriebsdaten!B12","v":"Beginn des festgelegten Bezugsjahres:"},null,null,null,{"$f":"Betriebsdaten!E12","v":"01."},null,{"$f":"Betriebsdaten!F12","v":"Juli"},null,{"$f":"Betriebsdaten!G12","v":2018}]
["6.",{"$f":"Betriebsdaten!B13","v":"Ende des festgelegt Bezugjahres:"},null,null,null,{"$f":"Betriebsdaten!E13","v":"30."},null,{"$f":"Betriebsdaten!F13","v":"Juni"},null,{"$f":"Betriebsdaten!G13","v":2019}]
["7.",{"$f":"Betriebsdaten!B14","v":"Datum der Erstellung:"},null,null,null,{"$f":"Betriebsdaten!E14","v":"30."},null,null,{"$f":"Betriebsdaten!F14","v":"Dezember"},{"$f":"Betriebsdaten!G14","v":2019}]
[null,"Daten für die betriebliche Stoffstrombilanz"]
[null,"Zufuhr","kg N","kg P2O5","Abgabe",null,null,null,"kg N","kg P2O5"]
["1.","Düngemittel insgesamt",{"$f":"Zufuhr!G15+C17+C18","v":0},{"$f":"Zufuhr!H15+D17+D18","v":0},"Pflanzliche Erzeugnisse",null,null,null,{"$f":"Abgabe!G15","v":0},{"$f":"Abgabe!H15","v":0}]
["2.","davon Wirtschaftsdünger tierischer Herkunft",{"$f":"Zufuhr!G29","v":0},{"$f":"Zufuhr!H29","v":0},"Tierische Erzeugnisse",null,null,null,{"$f":"Abgabe!G29","v":0},{"$f":"Abgabe!H29","v":0}]
["3.","davon sonstige organische Düngemittel",{"$f":"Zufuhr!G43","v":0},{"$f":"Zufuhr!H43","v":0},"Düngemittel insgesammt",null,null,null,{"$f":"Abgabe!G43+I19+I20","v":0},{"$f":"Abgabe!H43+J19+J20","v":0}]
["4.","Bodenhilfsstoffe",{"$f":"Zufuhr!G50","v":0},{"$f":"Zufuhr!H50","v":0},"davon Wirtschaftsdünger tierischer Herkunft",null,null,null,{"$f":"Abgabe!G57","v":0},{"$f":"Abgabe!H57","v":0}]
["5.","Kultursubstrate",{"$f":"Zufuhr!G57","v":0},{"$f":"Zufuhr!H57","v":0},"davon sonstige Düngemittel",null,null,null,{"$f":"Abgabe!G71","v":0},{"$f":"Abgabe!H71","v":0}]
["6.","Pflanzenhilfsmittel",{"$f":"Zufuhr!G64","v":0},{"$f":"Zufuhr!H64","v":0},"Bodenhilfsstoffe",null,null,null,{"$f":"Abgabe!G78","v":0},{"$f":"Abgabe!H78","v":0}]
["7.","Futtermittel",{"$f":"Zufuhr!G81","v":0},{"$f":"Zufuhr!H81","v":0},"Kultursubstrate",null,null,null,{"$f":"Abgabe!G85","v":0},{"$f":"Abgabe!H85","v":0}]
["8.","Saatgut einschlißlich Pflanzgut und Vermehrungsmatterial",{"$f":"Zufuhr!G95","v":0},{"$f":"Zufuhr!H95","v":0},"Pflanzenhilfsmittel",null,null,null,{"$f":"Abgabe!G92","v":0},{"$f":"Abgabe!H85","v":0}]
["9.","Landwirtschaftliche Nutztiere",{"$f":"Zufuhr!G109","v":0},{"$f":"Zufuhr!H109","v":0},"Futtermittel",null,null,null,{"$f":"Abgabe!G106","v":0},{"$f":"Abgabe!H106","v":0}]
["10.","Stickstoffzufuhr durch Leguminosen",{"$f":"Zufuhr!G121","v":0},null,"Saatgut einschließlich Pflanzgut und Vermehrungsmaterial",null,null,null,{"$f":"Abgabe!G120","v":0},{"$f":"Abgabe!H120","v":0}]
["11.","Sonstige Stoffe",{"$f":"Zufuhr!G135","v":0},{"$f":"Zufuhr!H135","v":0},"Landwirtschaftliche Nutztiere",null,null,null,{"$f":"Abgabe!G134","v":0},{"$f":"Abgabe!H134","v":0}]
["12.",null,null,null,"Sonstige Stoffe",null,null,null,{"$f":"Abgabe!G150","v":0},{"$f":"Abgabe!H150","v":0}]
[null,null,"kg N","kg P2O5",null,null,null,null,"kg N","kg P2O5"]
["13.","Summe der Nährstoffzufuhr je \nBetrieb in kg",{"$f":"Zufuhr!G137","v":0},{"$f":"Zufuhr!H137","v":0},"Summe der Nährstoffabgabe je \nBetrieb in kg",null,null,null,{"$f":"Abgabe!G152","v":0},{"$f":"Abgabe!H152","v":0}]
["14.","Summe der Nährstoffzufuhr je \nHektar in kg",{"$f":"IF(Betriebsdaten!E9=0,\"\",C29/F8)","v":""},{"$f":"IF(Betriebsdaten!E9=0,\"\",D29/F8)","v":""},"Summe der Nährstoffabgabe je \nHektar in kg",null,null,null,{"$f":"IF(Betriebsdaten!E9=0,\"\",I29/F8)","v":""},{"$f":"IF(Betriebsdaten!E9=0,\"\",J29/F8)","v":""}]
["15.","Differenz zwischen Nährstoffzufuhr und Nährstoffabgabe je Betrieb in kg",{"$f":"C29-I29","v":0},{"$f":"D29-J29","v":0}]
["16.","Differenz zwischen Nährstoffzufuhr und Nährstoffabgabe je Hektar in kg",{"$f":"IF(Betriebsdaten!E9=0,\"\",C30-I30)","v":""},{"$f":"IF(Betriebsdaten!E9=0,\"\",D30-J30)","v":""}]
["17.","Stickstoffdeposition im Betrieb über den Luftpfad in kg N/ha",15,"Die Stickstoffdeposition ist auf der Grundlage des letzten gültigen Hintergrundbelastungsdatensatzes Stickstoffdeposition des Umweltbundesamtes (http://gis.uba.de/website/depo1) am Betriebssitz zu ermitteln."]

{"sheet":"Stoffstrombilanz dreijährig","index":5,"n_rows":43,"n_cols":24,"rows_kept":43,"cut":false,"hidden":false,"merged":[[20,10,21,10],[7,1,7,7],[4,5,4,7],[5,5,5,7],[6,1,6,7],[20,6,21,6],[20,7,21,7],[16,1,16,11],[0,1,0,11],[7,9,7,10],[8,9,8,10],[2,1,5,4],[28,9,28,11],[28,5,28,8],[13,2,13,9],[20,1,21,1],[20,3,21,3],[19,5,19,8],[19,9,19,11],[20,2,21,2],[20,11,21,11],[8,1,8,7],[9,1,9,7],[2,8,2,11],[25,1,25,2],[1,1,1,11],[37,5,37,8],[37,9,37,11],[3,8,3,11],[4,8,4,11],[5,8,5,11],[6,8,6,11],[13,0,13,1],[20,4,21,4],[20,5,21,5],[2,0,6,0],[9,9,9,10],[2,5,2,7],[3,5,3,7],[20,9,21,9]]}
[null,"Stoffstrombilanz - dreijähriger Durchschnitt"]
[]
["1.","Eindeutige Bezeichnung des Betriebes:",null,null,null,"Betriebsname",null,null,{"$f":"IF(Betriebsdaten!E4=\"\",\"\",Betriebsdaten!E4)","v":""}]
[null,null,null,null,null,"Betriebsinnhaber",null,null,{"$f":"IF(Betriebsdaten!E5=\"\",\"\",Betriebsdaten!E5)","v":""}]
[null,null,null,null,null,"Straße Nr.",null,null,{"$f":"IF(Betriebsdaten!E6=\"\",\"\",Betriebsdaten!E6)","v":""}]
[null,null,null,null,null,"PLZ Ort",null,null,{"$f":"IF(Betriebsdaten!E7=\"\",\"\",Betriebsdaten!E7)","v":""}]
[null,"PI-Personenidentnummer (optional)",null,null,null,null,null,null,{"$f":"IF(Betriebsdaten!E8=\"\",\"\",Betriebsdaten!E8)","v":""}]
["2.","Beginn des festgelegten Bezugsjahres:",null,null,null,null,null,null,{"$f":"Betriebsdaten!E12","v":"01."},{"$f":"Betriebsdaten!F12","v":"Juli"},null,{"$f":"Betriebsdaten!G12","v":2018}]
["3.","Ende des festgelegt Bezugjahres:",null,null,null,null,null,null,{"$f":"Betriebsdaten!E13","v":"30."},{"$f":"Betriebsdaten!F13","v":"Juni"},null,{"$f":"Betriebsdaten!G13","v":2019}]
["4.","Datum der Erstellung:",null,null,null,null,null,null,{"$f":"Betriebsdaten!E14","v":"30."},{"$f":"Betriebsdaten!F14","v":"Dezember"},null,{"$f":"Betriebsdaten!G14","v":2019}]
[]
[]
[]
["Auf Basis von:",null,"175 kg N/ha Bilanzwert"]
[null,null,"175 kg N/ha Bilanzwert"]
[null,null,"individueller Bilanzwert"]
[null,"Betriebe ohne eigene Flächen müssen \"individueller Bilanzwert\" wählen! \nAndere Betriebe können zwischen den beiden Varianten wählen, müssen die gewählte Variante aber dauerhaft anwenden.\nNur bei der Auswahl \"individueller Bilanzwert\" muss das entsprechende Tabellenblatt ausgefüllt werden."]
[]
[]
[null,null,null,null,null,{"$f":"IF(C14=\"individueller Bilanzwert\",\"N kg/Betrieb\",\"N kg/ha\")","v":"N kg/ha"},null,null,null,{"$f":"IF(C14=\"individueller Bilanzwert\",J38,J29)","v":"P2O5 kg/ha"}]
[null,null,"Bezugsjahr","LF\n(ha)","GV","Zufuhr","Abgabe","Differenz","Zulässiger \nBilanzwert","Zufuhr","Abgabe","Differenz"]
[null,null,null,null,null,null,null,null,{"$f":"IF(C14=\"individueller Bilanzwert\",\"(Betrieb)\",\"(ha)\")","v":"(ha)"}]
["1.","2. Vorjahr",{"$f":"C25-2","v":2017}]
["2.","1. Vorjahr",{"$f":"C25-1","v":2018}]
["3.","Düngejahr",{"$f":"Betriebsdaten!G13","v":2019},{"$f":"Betriebsdaten!E9","v":0},{"$f":"Betriebsdaten!E10","v":0},{"$f":"IF(C14=\"individueller Bilanzwert\",F42,IF(D25=0,\"F\",F33))","v":"F"},{"$f":"IF(C14=\"individueller Bilanzwert\",G42,IF(D25=0,\"F\",G33))","v":"F"},{"$f":"IF(C14=\"individueller Bilanzwert\",H42,IF(D25=0,\"F\",H33))","v":"F"},{"$f":"IF(C14=\"individueller Bilanzwert\",I42,I33)","v":175},{"$f":"IF(C14=\"individueller Bilanzwert\",J42,IF(D25=0,\"F\",J33))","v":"F"},{"$f":"IF(C14=\"individueller Bilanzwert\",K42,IF(D25=0,\"F\",K33))","v":"F"},{"$f":"IF(C14=\"individueller Bilanzwert\",L42,IF(D25=0,\"F\",L33))","v":"F"}]
["4.","Betriebsdurchschnitt dreijährig",null,{"$f":"AVERAGE(D23:D25)","v":0},0,{"$f":"IF(AND(D26=0,C14=\"175 kg N/ha Bilanzwert\"),\"F\",AVERAGE(F23:F25))","v":"F"},{"$f":"IF(AND(D26=0,C14=\"175 kg N/ha Bilanzwert\"),\"F\",AVERAGE(G23:G25))","v":"F"},{"$f":"IF(AND(D26=0,C14=\"175 kg N/ha Bilanzwert\"),\"F\",AVERAGE(H23:H25))","v":"F"},{"$f":"AVERAGE(I23:I25)","v":175},{"$f":"IF(AND(D26=0,C14=\"175 kg N/ha Bilanzwert\"),\"F\",AVERAGE(J23:J25))","v":"F"},{"$f":"IF(AND(D26=0,C14=\"175 kg N/ha Bilanzwert\"),\"F\",AVERAGE(K23:K25))","v":"F"},{"$f":"IF(AND(D26=0,C14=\"175 kg N/ha Bilanzwert\"),\"F\",AVERAGE(L23:L25))","v":"F"}]
[]
[]
[null,null,null,null,null,"N kg/ha",null,null,null,"P2O5 kg/ha"]
[null,null,"Bezugsjahr","LF \n(ha)","GV","Zufuhr","Abgabe","Differenz","Zulässiger \nBilanzwert (ha)","Zufuhr","Abgabe","Differenz"]
["1.","2. Vorjahr",{"$f":"C33-2","v":2017},{"$f":"IF(P31=\"\",\"\",VLOOKUP($C31,$O$31:$X$33,2,FALSE))","v":""},{"$f":"IF(Q31=\"\",\"\",VLOOKUP($C31,$O$31:$X$33,3,FALSE))","v":""},{"$f":"IF(R31=\"\",\"\",VLOOKUP($C31,$O$31:$X$33,4,FALSE))","v":""},{"$f":"IF(S31=\"\",\"\",VLOOKUP($C31,$O$31:$X$33,5,FALSE))","v":""},{"$f":"IF(T31=\"\",\"\",VLOOKUP($C31,$O$31:$X$33,6,FALSE))","v":""},{"$f":"IF(U31=\"\",\"\",VLOOKUP($C31,$O$31:$X$33,7,FALSE))","v":""},{"$f":"IF(V31=\"\",\"\",VLOOKUP($C31,$O$31:$X$33,8,FALSE))","v":""},{"$f":"IF(W31=\"\",\"\",VLOOKUP($C31,$O$31:$X$33,9,FALSE))","v":""},{"$f":"IF(X31=\"\",\"\",VLOOKUP($C31,$O$31:$X$33,10,FALSE))","v":""},null,null,2017]
["2.","1. Vorjahr",{"$f":"C33-1","v":2018},{"$f":"IF(P32=\"\",\"\",VLOOKUP($C32,$O$31:$X$33,2,FALSE))","v":""},{"$f":"IF(Q32=\"\",\"\",VLOOKUP($C32,$O$31:$X$33,3,FALSE))","v":""},{"$f":"IF(R32=\"\",\"\",VLOOKUP($C32,$O$31:$X$33,4,FALSE))","v":""},{"$f":"IF(S32=\"\",\"\",VLOOKUP($C32,$O$31:$X$33,5,FALSE))","v":""},{"$f":"IF(T32=\"\",\"\",VLOOKUP($C32,$O$31:$X$33,6,FALSE))","v":""},{"$f":"IF(U32=\"\",\"\",VLOOKUP($C32,$O$31:$X$33,7,FALSE))","v":""},{"$f":"IF(V32=\"\",\"\",VLOOKUP($C32,$O$31:$X$33,8,FALSE))","v":""},{"$f":"IF(W32=\"\",\"\",VLOOKUP($C32,$O$31:$X$33,9,FALSE))","v":""},{"$f":"IF(X32=\"\",\"\",VLOOKUP($C32,$O$31:$X$33,10,FALSE))","v":""},null,null,2018]
["3.","Düngejahr",{"$f":"Betriebsdaten!G13","v":2019},{"$f":"Betriebsdaten!E9","v":0},{"$f":"Betriebsdaten!E10","v":0},{"$f":"'Stoffstrombilanz Einzeljahr '!C30","v":""},{"$f":"'Stoffstrombilanz Einzeljahr '!I30","v":""},{"$f":"'Stoffstrombilanz Einzeljahr '!C32","v":""},175,{"$f":"'Stoffstrombilanz Einzeljahr '!D30","v":""},{"$f":"'Stoffstrombilanz Einzeljahr '!J30","v":""},{"$f":"'Stoffstrombilanz Einzeljahr '!D32","v":""},null,null,2019,120,0,0.6428571428571429,0,0.6428571428571429,175,0.35476190476190478,1,0.35476190476190478]
["4.","Betriebsdurchschnitt dreijährig",null,{"$f":"AVERAGE(D31:D33)","v":0},0,{"$error":"#DIV/0!"},{"$error":"#DIV/0!"},{"$error":"#DIV/0!"},175,{"$error":"#DIV/0!"},{"$error":"#DIV/0!"},{"$error":"#DIV/0!"}]
[]
[]
[]
[null,null,null,null,null,"N kg/Betrieb",null,null,null,"P2O5/Betrieb"]
[null,null,"Bezugsjahr","LF \n(ha)","GV","Zufuhr","Abgabe","Differenz","Zulässiger \nBilanzwert (Jahr)","Zufuhr","Abgabe","Differenz"]
["1.","2. Vorjahr",{"$f":"C42-2","v":2017},{"$f":"IF(P40=\"\",\"\",VLOOKUP($C40,$O$40:$X$42,2,FALSE))","v":""},{"$f":"IF(Q40=\"\",\"\",VLOOKUP($C40,$O$40:$X$42,3,FALSE))","v":""},{"$f":"IF(R40=\"\",\"\",VLOOKUP($C40,$O$40:$X$42,4,FALSE))","v":""},{"$f":"IF(S40=\"\",\"\",VLOOKUP($C40,$O$40:$X$42,5,FALSE))","v":""},{"$f":"IF(T40=\"\",\"\",VLOOKUP($C40,$O$31:$X$33,6,FALSE))","v":""},{"$f":"IF(U40=\"\",\"\",VLOOKUP($C40,$O$40:$X$42,7,FALSE))","v":""},{"$f":"IF(V40=\"\",\"\",VLOOKUP($C40,$O$40:$X$42,8,FALSE))","v":""},{"$f":"IF(W40=\"\",\"\",VLOOKUP($C40,$O$40:$X$42,9,FALSE))","v":""},{"$f":"IF(X40=\"\",\"\",VLOOKUP($C40,$O$40:$X$42,10,FALSE))","v":""},null,null,2017]
["2.","1. Vorjahr",{"$f":"C42-1","v":2018},{"$f":"IF(P41=\"\",\"\",VLOOKUP($C41,$O$40:$X$42,2,FALSE))","v":""},{"$f":"IF(Q41=\"\",\"\",VLOOKUP($C41,$O$40:$X$42,3,FALSE))","v":""},{"$f":"IF(R41=\"\",\"\",VLOOKUP($C41,$O$40:$X$42,4,FALSE))","v":""},{"$f":"IF(S41=\"\",\"\",VLOOKUP($C41,$O$40:$X$42,5,FALSE))","v":""},{"$f":"IF(T41=\"\",\"\",VLOOKUP($C41,$O$31:$X$33,6,FALSE))","v":""},{"$f":"IF(U41=\"\",\"\",VLOOKUP($C41,$O$40:$X$42,7,FALSE))","v":""},{"$f":"IF(V41=\"\",\"\",VLOOKUP($C41,$O$40:$X$42,8,FALSE))","v":""},{"$f":"IF(W41=\"\",\"\",VLOOKUP($C41,$O$40:$X$42,9,FALSE))","v":""},{"$f":"IF(X41=\"\",\"\",VLOOKUP($C41,$O$40:$X$42,10,FALSE))","v":""},null,null,2018]
["3.","Düngejahr",{"$f":"Betriebsdaten!G13","v":2019},{"$f":"Betriebsdaten!E9","v":0},{"$f":"Betriebsdaten!E10","v":0},{"$f":"'Stoffstrombilanz Einzeljahr '!C29","v":0},{"$f":"'Stoffstrombilanz Einzeljahr '!I29","v":0},{"$f":"F42-G42","v":0},{"$f":"'individueller Bilanzwert'!G118","v":0},{"$f":"'Stoffstrombilanz Einzeljahr '!D29","v":0},{"$f":"'Stoffstrombilanz Einzeljahr '!J29","v":0},{"$f":"J42-K42","v":0},null,null,2019,120,0,77.142857142857153,0,77.142857142857153,{"$error":"#REF!"},42.571428571428577,0,42.571428571428577]
["4.","Betriebsdurchschnitt dreijährig",null,{"$f":"AVERAGE(D40:D42)","v":0},{"$f":"AVERAGE(E40:E42)","v":0},0,0,0,0,0,0,0]

{"sheet":"individueller Bilanzwert","index":6,"n_rows":138,"n_cols":12,"rows_kept":138,"cut":false,"hidden":false,"merged":[[53,4,53,5],[2,0,3,0],[2,4,2,5],[4,4,4,5],[117,0,118,0],[21,4,21,5],[20,1,20,3],[100,0,115,0],[5,1,5,3],[53,1,53,3],[68,0,83,0],[84,0,99,0],[21,1,21,3],[117,6,118,6],[68,4,68,5],[69,4,69,5],[69,1,69,3],[68,1,68,3],[100,1,100,2],[100,4,100,5],[101,4,101,5],[101,1,101,3],[85,1,85,3],[84,4,84,5],[85,4,85,5],[117,1,118,5],[84,1,84,3],[1,0,1,6],[0,0,0,6],[20,0,35,0],[36,0,51,0],[52,0,67,0],[2,1,3,2],[20,4,20,5],[37,4,37,5],[36,4,36,5],[36,1,36,3],[37,1,37,3],[52,1,52,3],[52,4,52,5],[4,1,4,3],[4,0,19,0],[5,4,5,5]]}
["Stoffstrombilanz - individueller Bilanzwert"]
["Nur auszufüllen wenn \"individueller Bilanzwert\" ausgwählt wurde"]
["1.","Zulässiger Stickstoffüberschuss je Hektar nach der Düngeverordnung (zulässiger Kontrollwert im Nährstoffvergleich nach § 8 DüV)",null,"kg N/ha","Landwirtschaftlich genutzte Fläche in Hektar",null,"Wert in kg N je Betrieb"]
[null,null,null,50,null,{"$f":"Betriebsdaten!$E$9","v":0},{"$f":"D4*F4","v":0}]
["2.","Stickstoffverluste im Stall und bei der Lagerung von Wirtschaftsdüngern in tierhaltenden Betrieben",null,null,"Maximal zulässige Stickstoffverluste laut DüV bzw. StoffBilV"]
[null,"Stickstoffausscheidung der Tierhaltung nach der Düngeverordnung",null,null,"Wert aus Tabelle 2, StoffBilV"]
[null,null,"Haltungs- form","Tiere o.\nStall- plätze/ \nJahr","Kategorie","Verluste in %","kg N"]
[null,null,null,null,{"$f":"IF(B8=\"\",\"\",VLOOKUP(B8,Nährstoffausscheidungen2,4,FALSE))","v":""},{"$f":"IF(C8=\"Mist\",VLOOKUP(E8,UnvermeidbareVerluste,3,),IF(C8=\"Gülle\",VLOOKUP(E8,UnvermeidbareVerluste,2,),\"\"))","v":""},{"$f":"IF(B8=\"\",\"\",D8*F8/100*(VLOOKUP(B8,Nährstoffausscheidungen2,2,FALSE)))","v":""},null,"Mist",50]
[null,null,null,null,"","","",null,"Gülle",40]
[null,null,null,null,"","",""]
[null,null,null,null,"","",""]
[null,null,null,null,"","",""]
[null,null,null,null,"","",""]
[null,null,null,null,"","",""]
[null,null,null,null,"","",""]
[null,null,null,null,"","",""]
[null,null,null,null,"","",""]
[null,null,null,null,"","",""]
[null,null,null,null,"","",""]
[null,null,null,null,null,null,{"$f":"SUM(G8:G19)","v":0}]
["3.","Stickstoffverluste bei der Lagerung von Gärsubstraten pflanzlicher Herkunft in Biogasbetrieben",null,null,"Maximal zulässige Stickstoffverluste laut DüV bzw. StoffBilV"]
[null,"Stickstoffzufuhr über Substrate pflanzlicher Herkunft in die Biogasanlage",null,null,"Pauschal 5 % Verlust laut StoffBilV"]
[null,null,"kg N/dt","dt",null,"Verluste in %","kg N"]
[null,null,{"$f":"IF(B24=\"\",\"\",VLOOKUP('individueller Bilanzwert'!B24,pflProdukte, 2,FALSE))","v":""},null,null,{"$f":"IF(D24=\"\",\"\",5)","v":""},{"$f":"IF(B24=\"\",\"\",F24/100*D24*C24)","v":""}]
[null,null,{"$f":"IF(B25=\"\",\"\",VLOOKUP('individueller Bilanzwert'!B25,pflProdukte, 2,FALSE))","v":""},null,null,{"$f":"IF(D25=\"\",\"\",5)","v":""},{"$f":"IF(B25=\"\",\"\",F25/100*D25*C25)","v":""}]
[null,null,{"$f":"IF(B26=\"\",\"\",VLOOKUP('individueller Bilanzwert'!B26,pflProdukte, 2,FALSE))","v":""},null,null,"",""]
[null,null,{"$f":"IF(B27=\"\",\"\",VLOOKUP('individueller Bilanzwert'!B27,pflProdukte, 2,FALSE))","v":""},null,null,"",""]
[null,null,{"$f":"IF(B28=\"\",\"\",VLOOKUP('individueller Bilanzwert'!B28,pflProdukte, 2,FALSE))","v":""},null,null,"",""]
[null,null,{"$f":"IF(B29=\"\",\"\",VLOOKUP('individueller Bilanzwert'!B29,pflProdukte, 2,FALSE))","v":""},null,null,"",""]
[null,null,{"$f":"IF(B30=\"\",\"\",VLOOKUP('individueller Bilanzwert'!B30,pflProdukte, 2,FALSE))","v":""},null,null,"",""]
[null,null,{"$f":"IF(B31=\"\",\"\",VLOOKUP('individueller Bilanzwert'!B31,pflProdukte, 2,FALSE))","v":""},null,null,"",""]
[null,null,{"$f":"IF(B32=\"\",\"\",VLOOKUP('individueller Bilanzwert'!B32,pflProdukte, 2,FALSE))","v":""},null,null,"",""]
[null,null,{"$f":"IF(B33=\"\",\"\",VLOOKUP('individueller Bilanzwert'!B33,pflProdukte, 2,FALSE))","v":""},null,null,"",""]
[null,null,{"$f":"IF(B34=\"\",\"\",VLOOKUP('individueller Bilanzwert'!B34,pflProdukte, 2,FALSE))","v":""},null,null,"",""]
[null,null,{"$f":"IF(B35=\"\",\"\",VLOOKUP('individueller Bilanzwert'!B35,pflProdukte, 2,FALSE))","v":""},null,null,"",""]
[null,null,null,null,null,null,{"$f":"SUM(G24:G35)","v":0}]
["4.","Stickstoffverluste bei der Lagerung von Gärrückständen in Biogasbetrieben",null,null,"Maximal zulässige Stickstoffverluste laut DüV bzw. StoffBilV"]
[null,"Stickstoffzufuhr über Substrate in die Biogasanlage",null,null,"Wert aus Tabelle 2, StoffBilV"]
[null,null,"kg N/m³ \nbzw\nkg N/t","m³\nbzw\nt","Kategorie","Verluste in %","kg N"]
[null,null,{"$f":"IF(B40=\"\",\"\",VLOOKUP(B40,Wirtschaftsdünger2,6,))","v":""},null,{"$f":"IF(B40=\"\",\"\",VLOOKUP(B40,Wirtschaftsdünger2,8,FALSE))","v":""},{"$f":"IF(B40=\"\",\"\",VLOOKUP(E40,Verluste!$A$4:$H$43,4,))","v":""},{"$f":"IF(B40=\"\",\"\",D40*C40/100*F40)","v":""}]
[null,null,"",null,"",{"$f":"IF(B41=\"\",\"\",VLOOKUP(E41,Verluste!$A$4:$H$43,4,))","v":""},{"$f":"IF(B41=\"\",\"\",D41*C41/100*F41)","v":""}]
[null,null,"",null,"",{"$f":"IF(B42=\"\",\"\",VLOOKUP(E42,Verluste!$A$4:$H$43,4,))","v":""},""]
[null,null,"",null,"",{"$f":"IF(B43=\"\",\"\",VLOOKUP(E43,Verluste!$A$4:$H$43,4,))","v":""},""]
[null,null,"",null,"",{"$f":"IF(B44=\"\",\"\",VLOOKUP(E44,Verluste!$A$4:$H$43,4,))","v":""},""]
[null,null,"",null,"",{"$f":"IF(B45=\"\",\"\",VLOOKUP(E45,Verluste!$A$4:$H$43,4,))","v":""},""]
[null,null,"",null,"",{"$f":"IF(B46=\"\",\"\",VLOOKUP(E46,Verluste!$A$4:$H$43,4,))","v":""},""]
[null,null,"",null,"",{"$f":"IF(B47=\"\",\"\",VLOOKUP(E47,Verluste!$A$4:$H$43,4,))","v":""},""]
[null,null,"",null,"",{"$f":"IF(B48=\"\",\"\",VLOOKUP(E48,Verluste!$A$4:$H$43,4,))","v":""},""]
[null,null,"",null,"",{"$f":"IF(B49=\"\",\"\",VLOOKUP(E49,Verluste!$A$4:$H$43,4,))","v":""},""]
[null,null,"",null,"",{"$f":"IF(B50=\"\",\"\",VLOOKUP(E50,Verluste!$A$4:$H$43,4,))","v":""},""]
[null,null,"",null,"",{"$f":"IF(B51=\"\",\"\",VLOOKUP(E51,Verluste!$A$4:$H$43,4,))","v":""},""]
[null,null,null,null,null,null,{"$f":"SUM(G40:G51)","v":0}]
["5.","Stickstoffverluste bei der Aufbringung von betriebseigenen organischen Düngemitteln",null,null,"Maximal zulässige Stickstoffverluste laut DüV bzw. StoffBilV"]
[null,"Stickstoffaufbringung mit betriebseigenen organischen Düngemitteln",null,null,"Wert aus Tabelle 3, StoffBilV"]
[null,null,"kg N/m³ \nbzw\nkg N/t","m³\nbzw\nt","Kategorie","Verluste in %","kg N"]
[null,null,{"$f":"IF(B56=\"\",\"\",VLOOKUP(B56,Wirtschaftsdünger2,6,))","v":""},null,{"$f":"IF(B56=\"\",\"\",VLOOKUP(B56,Wirtschaftsdünger2,8,FALSE))","v":""},{"$f":"IF(B56=\"\",\"\",VLOOKUP(E56,Verluste!$A$4:$H$43,4,))","v":""},{"$f":"IF(B56=\"\",\"\",D56*C56/100*F56)","v":""}]
[null,null,"",null,"",{"$f":"IF(B57=\"\",\"\",VLOOKUP(E57,Verluste!$A$4:$H$43,4,))","v":""},{"$f":"IF(B57=\"\",\"\",D57*C57/100*F57)","v":""}]
[null,null,"",null,"",{"$f":"IF(B58=\"\",\"\",VLOOKUP(E58,Verluste!$A$4:$H$43,4,))","v":""},""]
[null,null,"",null,"",{"$f":"IF(B59=\"\",\"\",VLOOKUP(E59,Verluste!$A$4:$H$43,4,))","v":""},""]
[null,null,"",null,"",{"$f":"IF(B60=\"\",\"\",VLOOKUP(E60,Verluste!$A$4:$H$43,4,))","v":""},""]
[null,null,"",null,"",{"$f":"IF(B61=\"\",\"\",VLOOKUP(E61,Verluste!$A$4:$H$43,4,))","v":""},""]
[null,null,"",null,"",{"$f":"IF(B62=\"\",\"\",VLOOKUP(E62,Verluste!$A$4:$H$43,4,))","v":""},""]
[null,null,"",null,"",{"$f":"IF(B63=\"\",\"\",VLOOKUP(E63,Verluste!$A$4:$H$43,4,))","v":""},""]
[null,null,"",null,"",{"$f":"IF(B64=\"\",\"\",VLOOKUP(E64,Verluste!$A$4:$H$43,4,))","v":""},""]
[null,null,"",null,"",{"$f":"IF(B65=\"\",\"\",VLOOKUP(E65,Verluste!$A$4:$H$43,4,))","v":""},""]
[null,null,"",null,"",{"$f":"IF(B66=\"\",\"\",VLOOKUP(E66,Verluste!$A$4:$H$43,4,))","v":""},""]
[null,null,"",null,"",{"$f":"IF(B67=\"\",\"\",VLOOKUP(E67,Verluste!$A$4:$H$43,4,))","v":""},""]
[null,null,null,null,null,null,{"$f":"SUM(G56:G67)","v":0}]
["6.","Stickstoffverluste bei der Aufbringung von aufgenommenen organischen Düngemitteln",null,null,"Maximal zulässige Stickstoffverluste laut DüV bzw. StoffBilV"]
[null,"Stickstoffaufbringung mit aufgenommenen organischen Düngemitteln",null,null,"Wert aus Tabelle 3, StoffBilV"]
[null,null,"kg N/m³ \nbzw\nkg N/t","m³\nbzw\nt","Kategorie","Verluste in %","kg N"]
[null,null,{"$f":"IF(B72=\"\",\"\",VLOOKUP(B72,Wirtschaftsdünger2,6,))","v":""},null,{"$f":"IF(B72=\"\",\"\",VLOOKUP(B72,Wirtschaftsdünger2,8,FALSE))","v":""},{"$f":"IF(B72=\"\",\"\",VLOOKUP(E72,Verluste!$A$4:$H$43,4,))","v":""},{"$f":"IF(B72=\"\",\"\",D72*C72/100*F72)","v":""}]
[null,null,"",null,"",{"$f":"IF(B73=\"\",\"\",VLOOKUP(E73,Verluste!$A$4:$H$43,4,))","v":""},{"$f":"IF(B73=\"\",\"\",D73*C73/100*F73)","v":""}]
[null,null,"",null,"",{"$f":"IF(B74=\"\",\"\",VLOOKUP(E74,Verluste!$A$4:$H$43,4,))","v":""},""]
[null,null,"",null,"",{"$f":"IF(B75=\"\",\"\",VLOOKUP(E75,Verluste!$A$4:$H$43,4,))","v":""},""]
[null,null,"",null,"",{"$f":"IF(B76=\"\",\"\",VLOOKUP(E76,Verluste!$A$4:$H$43,4,))","v":""},""]
[null,null,"",null,"",{"$f":"IF(B77=\"\",\"\",VLOOKUP(E77,Verluste!$A$4:$H$43,4,))","v":""},""]
[null,null,"",null,"",{"$f":"IF(B78=\"\",\"\",VLOOKUP(E78,Verluste!$A$4:$H$43,4,))","v":""},""]
[null,null,"",null,"",{"$f":"IF(B79=\"\",\"\",VLOOKUP(E79,Verluste!$A$4:$H$43,4,))","v":""},""]
[null,null,"",null,"",{"$f":"IF(B80=\"\",\"\",VLOOKUP(E80,Verluste!$A$4:$H$43,4,))","v":""},""]
[null,null,"",null,"",{"$f":"IF(B81=\"\",\"\",VLOOKUP(E81,Verluste!$A$4:$H$43,4,))","v":""},""]
[null,null,"",null,"",{"$f":"IF(B82=\"\",\"\",VLOOKUP(E82,Verluste!$A$4:$H$43,4,))","v":""},""]
[null,null,"",null,"",{"$f":"IF(B83=\"\",\"\",VLOOKUP(E83,Verluste!$A$4:$H$43,4,))","v":""},""]
[null,null,null,null,null,null,{"$f":"SUM(G72:G83)","v":0}]
["7.","Stickstoffverluste bei der Lagerung von Grobfutter",null,null,"Maximal zulässige Stickstoffverluste laut DüV bzw. StoffBilV"]
[null,"Stickstoffabfuhr von Grobfutterflächen \n(nach § 8 Absatz 3 Satz 1 der DüV)",null,null,"Pauschal 10 % Verlust laut StoffBilV"]
[null,null,"Tiere o.\nStall- plätze/ \nJahr","kg N Auf- nahme/ Jahr",null,"Verluste in %","kg N"]
[null,null,null,{"$f":"IF(B88=\"\",\"\",VLOOKUP(B88,Grobfutter,2,))","v":""},null,{"$f":"IF(C88=\"\",\"\",10)","v":""},{"$f":"IF(B88=\"\",\"\",C88*D88/100*10*1.15)","v":""},null,null,null,{"$f":"Grobfutter!A4","v":"Kälberaufzucht 0 bis 16 Wochen, 90 kg Zuwachs, 3 Durchgänge"},{"$f":"Grobfutter!B3","v":0}]
[null,null,null,"",null,{"$f":"IF(C89=\"\",\"\",10)","v":""},{"$f":"IF(B89=\"\",\"\",C89*D89/100*10*1.15)","v":""},null,null,null,{"$f":"Grobfutter!A5","v":"Kuh-/Rinderhaltung; \nGrünlandb. Konventionell"},{"$f":"Grobfutter!B4","v":5.6}]
[null,null,null,"",null,"","",null,null,null,{"$f":"Grobfutter!A6","v":"Kuh-/Rinderhaltung; \nGrünlandb. Extensiv"},{"$f":"Grobfutter!B5","v":58}]
[null,null,null,"",null,"",""]
[null,null,null,"",null,"",""]
[null,null,null,"",null,"",""]
[null,null,null,"",null,"",""]
[null,null,null,"",null,"",""]
[null,null,null,"",null,"",""]
[null,null,null,"",null,"",""]
[null,null,null,"",null,"","",null,null,null,{"$f":"Grobfutter!A7","v":"Kuh-/Rinderhaltung; \nAckerbaub. mit Weide"},{"$f":"Grobfutter!B6","v":53}]
[null,null,null,"",null,"","",null,null,null,{"$f":"Grobfutter!A8","v":"Kuh-/Rinderhaltung; \nAckerbaub. Stallhaltung"},{"$f":"Grobfutter!B7","v":48}]
[null,null,null,null,null,null,{"$f":"SUM(G88:G99)","v":0},null,null,null,{"$f":"Grobfutter!A9","v":"Kuh-/Rinderhaltung; \nmittl. u. schwere R. Grünl. mit Weide 6000 kg"},{"$f":"Grobfutter!B8","v":43}]
["8.","Stickstoffverluste bei der Weidehaltung",null,null,"Maximal zulässige Stickstoffverluste laut DüV bzw. StoffBilV"]
[null,"N-Ausscheidung der Tierhaltung nach der DüV × Anzahl der Weidetage",null,null,"Pauschal 75 % Verlust laut StoffBilV"]
[null,null,"Tiere o.\nStall- plätze/ \nJahr","kg N/\nJahr",null,"Weide- tage","kg N",null,null,null,{"$f":"Grobfutter!A10","v":"Kuh-/Rinderhaltung; \nmittl. u. schwere R. Grünl. mit Weide 8000 kg"},{"$f":"Grobfutter!B9","v":108}]
[null,null,null,{"$f":"IF(B104=\"\",\"\",VLOOKUP(B104,Nährstoffausscheidungen2,2,))","v":""},null,null,{"$f":"IF(B104=\"\",\"\",D104/100*75/365*F104*C104)","v":""},null,null,null,{"$f":"Grobfutter!A11","v":"Kuh-/Rinderhaltung; \nmittl. u. schwere R. Grünl. mit Weide 10000 kg"},{"$f":"Grobfutter!B10","v":111}]
[null,null,null,"",null,null,{"$f":"IF(B105=\"\",\"\",D105/100*75/365*F105*C105)","v":""},null,null,null,{"$f":"Grobfutter!A12","v":"Kuh-/Rinderhaltung; \nmittl. u. schwere R. Grünl. ohne Weide 6000 kg"},{"$f":"Grobfutter!B11","v":113}]
[null,null,null,"",null,null,"",null,null,null,{"$f":"Grobfutter!A13","v":"Kuh-/Rinderhaltung; \nmittl. u. schwere R. Grünl. ohne Weide 8000 kg"},{"$f":"Grobfutter!B12","v":98}]
[null,null,null,"",null,null,""]
[null,null,null,"",null,null,""]
[null,null,null,"",null,null,""]
[null,null,null,"",null,null,""]
[null,null,null,"",null,null,""]
[null,null,null,"",null,null,""]
[null,null,null,"",null,null,""]
[null,null,null,"",null,null,"",null,null,null,{"$f":"Grobfutter!A14","v":"Kuh-/Rinderhaltung; \nmittl. u. schwere R. Grünl. ohne Weide 10000 kg"},{"$f":"Grobfutter!B13","v":98}]
[null,null,null,"",null,null,"",null,null,null,{"$f":"Grobfutter!#REF!","v":{"$error":"#REF!"}},{"$f":"Grobfutter!B14","v":101}]
[null,null,null,null,null,null,{"$f":"SUM(G104:G115)","v":0},null,null,null,{"$f":"Grobfutter!A15","v":"Kuh-/Rinderhaltung; \nAckerfutterb.mit Weide 6000 kg"},{"$f":"Grobfutter!#REF!","v":{"$error":"#REF!"}}]
[]
["9.","Summe der zulässigen Stickstoffverluste im Betrieb in kg N",null,null,null,null,{"$f":"G116+G100+G84+G68+G52+G36+G20+G4","v":0},null,null,null,{"$f":"Grobfutter!A16","v":"Kuh-/Rinderhaltung; \nAckerfutterb.mit Weide 8000 kg"},{"$f":"Grobfutter!B15","v":86}]
[null,null,null,null,null,null,null,null,null,null,{"$f":"Grobfutter!A17","v":"Kuh-/Rinderhaltung; \nAckerfutterb.mit Weide 10000 kg"},{"$f":"Grobfutter!B16","v":93}]
[null,null,null,null,null,null,null,null,null,null,{"$f":"Grobfutter!A18","v":"Kuh-/Rinderhaltung; \nAckerfutterb.mit Weide 12000 kg"},{"$f":"Grobfutter!B17","v":98}]
[null,null,null,null,null,null,null,null,null,null,{"$f":"Grobfutter!A19","v":"Kuh-/Rinderhaltung; \nAckerfutterb. ohne Weide mit Heu 6000 kg"},{"$f":"Grobfutter!B18","v":101}]
[null,null,null,null,null,null,null,null,null,null,{"$f":"Grobfutter!A20","v":"Kuh-/Rinderhaltung; \nAckerfutterb. ohne Weide mit Heu 8000 kg"},{"$f":"Grobfutter!B19","v":77}]
[null,null,null,null,null,null,null,null,null,null,{"$f":"Grobfutter!A21","v":"Kuh-/Rinderhaltung; \nAckerfutterb. ohne Weide mit Heu 10000 kg"},{"$f":"Grobfutter!B20","v":84}]
[null,null,null,null,null,null,null,null,null,null,{"$f":"Grobfutter!A22","v":"Kuh-/Rinderhaltung; \nAckerfutterb. ohne Weide mit Heu 12000 kg"},{"$f":"Grobfutter!B21","v":89}]
[null,null,null,null,null,null,null,null,null,null,{"$f":"Grobfutter!A23","v":"Kuh-/Rinderhaltung; \nAckerfutterbaub. 5000 kg"},{"$f":"Grobfutter!B22","v":94}]
[null,null,null,null,null,null,null,null,null,null,{"$f":"Grobfutter!A24","v":"Kuh-/Rinderhaltung; \nAckerfutterbaub. 7000 kg"},{"$f":"Grobfutter!B23","v":68}]
[null,null,null,null,null,null,null,null,null,null,{"$f":"Grobfutter!A25","v":"Kuh-/Rinderhaltung; \nAckerfutterbaub. 9000 kg"},{"$f":"Grobfutter!B24","v":75}]
[null,null,null,null,null,null,null,null,null,null,{"$f":"Grobfutter!A26","v":"Kuh-/Rinderhaltung; \nMast von 50 bis 350 kg LM; 1,3 Umtriebe p.a."},{"$f":"Grobfutter!B25","v":80}]
[null,null,null,null,null,null,null,null,null,null,{"$f":"Grobfutter!A27","v":"Kuh-/Rinderhaltung; Kälbermast\n50 bis 250 kg LM; 2,1 Umtriebe p.a."},{"$f":"Grobfutter!B26","v":7}]
[null,null,null,null,null,null,null,null,null,null,{"$f":"Grobfutter!A28","v":"Kuh-/Rinderhaltung; Kälbermast\n50 bis 260 kg LM; 1,9 Umtriebe p.a."},{"$f":"Grobfutter!B27","v":0.6}]
[null,null,null,null,null,null,null,null,null,null,{"$f":"Grobfutter!A29","v":"Kuh-/Rinderhaltung; Fresseraufzucht\n80 bis 210 kg LM; 2,7 Umtriebe p.a."},{"$f":"Grobfutter!B28","v":0.3}]
[null,null,null,null,null,null,null,null,null,null,{"$f":"Grobfutter!A30","v":"Kuh-/Rinderhaltung; Fresseraufzucht\n81 bis 210 kg LM; 2,7 Umtriebe p.a. N/P reduziert"},{"$f":"Grobfutter!B29","v":6}]
[null,null,null,null,null,null,null,null,null,null,{"$f":"Grobfutter!A31","v":"Kuh-/Rinderhaltung; Bullenmast\nbis 675 kg LM (19 Monate) ab Kalb 45 kg LM"},{"$f":"Grobfutter!B30","v":6}]
[null,null,null,null,null,null,null,null,null,null,{"$f":"Grobfutter!#REF!","v":{"$error":"#REF!"}},{"$f":"Grobfutter!#REF!","v":{"$error":"#REF!"}}]
[null,null,null,null,null,null,null,null,null,null,{"$f":"Grobfutter!A32","v":"Kuh-/Rinderhaltung; Bullenmast\nbis 750 kg LM ab Kalb 45 kg LM"},{"$f":"Grobfutter!B31","v":19.600000000000001}]
[null,null,null,null,null,null,null,null,null,null,{"$f":"Grobfutter!A33","v":"Kuh-/Rinderhaltung; Bullenmast\nbis 750 kg LM ab Kalb 80 kg LM"},{"$f":"Grobfutter!B32","v":20.2}]
[null,null,null,null,null,null,null,null,null,null,{"$f":"Grobfutter!A34","v":"Kuh-/Rinderhaltung; Bullenmast\nbis 750 kg LM ab Kalb 210 kg LM"},{"$f":"Grobfutter!B33","v":21}]
[null,null,null,null,null,null,null,null,null,null,{"$f":"Grobfutter!A35","v":"Kuh-/Rinderhaltung; Mutterkuhhaltung\n500 kg LM; 0,9 Kalb je Kuh p.a.; 6 Monate Säugezeit"},{"$f":"Grobfutter!B34","v":22.4}]

{"sheet":"Handelsdünger","index":7,"n_rows":99,"n_cols":3,"rows_kept":99,"cut":false,"hidden":false,"merged":[]}
["Handelsdünger"]
[null,"kg N je dt","kg P2O5 je dt"]
[]
["AH-Lösung         kg/dt",28,0]
["AH-Lösung         kg/100 l",36,0]
["Alzon 46",46,0]
["Alzon-Neo-N",46,0]
["Ammoniak-Gas   kg/m3",82,0]
["Kalkstickstoff-gek.",20,0]
["Kalkstickstoff-gem.",20.5,0]
["Harnstoff",46,0]
["Kalkammonsalpeter 27",27,0]
["Kalkammonsalpeter 26",26,0]
["Ammonsulfat",26,0]
["Schw. Ammoniak",21,0]
["Stickstoffmagnesia",22,0]
["Kalksalpeter",15.5,0]
["NP 10+34",10,34]
["NP 11+52",11,52]
["NP 18+46 (Diammon.)",18,46]
["NP 20+20",20,20]
["NP 26+14",26,14]
["NPK 6+10+18+2",6,10]
["NPK 6+12+18",6,12]
["NPK 10+8+18",10,8]
["NPK 10+15+20",10,15]
["NPK 10+15+20+2",10,15]
["NPK 12+12+17+2",12,12]
["NPK 12+12+17+2 cl-arm",12,12]
["NPK 13+13+21",13,13]
["NPK 13+13+21+ Bor",13,13]
["NPK 15+15+15",15,15]
["NPK 15+10+20",15,10]
["NPK 15+9+15+4",15,9]
["NPK 15+9+15+2",15,9]
["NPK 15+5+16+4 cl-arm",15,5]
["NPK 15+5+20+2 cl-arm",15,5]
["NPK 24+8+8",24,8]
["Thomaskali 8+15+5",0,8]
["Thomaskali 10+15+2",0,10]
["Thomaskali 10+20-3",0,10]
["Thomaskali 11+11+4",0,11]
["Thomaskali 12+18+3",0,12]
["SupRheKaPhos 14+24",0,14]
["SupRheKaPhos 16+20",0,16]
["SupRheKaPhos 18+24",0,18]
["SupRheKaPhos 9+25",0,9]
["SupRheKaPhos 14+14+4",0,14]
["SupRheKaPhos 9+21+4",0,9]
["SupRheKaPhos 14+8+8",0,14]
["Carolan PK 13+13+5",0,13]
["Carolan PK 14+24",0,14]
["Carolon PK 18+18",0,18]
["Carolan PK 21+11",0,21]
["Hyperp-Kali 15+25",0,15]
["Hyperp-Kali 19+19",0,19]
["Hyperp-Kali 22+12",0,22]
["Hyperp-Kali 12+24+4",0,12]
["Hyperp-Kali 14+18+5",0,14]
["Hyperp-Kali 14+14+6",0,14]
["Hyperp-Kali 18+10-5",0,18]
["Phosphatkali 9+25",0,9]
["Phosphatkali 12+24",0,12]
["Phosphatkali 15+20",0,15]
["Phosphatkali 16+16",0,16]
["Phosphatkali 18+10",0,18]
["Phosphatkali 20+30",0,20]
["Thomasmehl 12",0,12]
["Thomasmehl 15",0,15]
["Thomasmehl 18",0,18]
["Superphosphat 18",0,18]
["Novaphos 17+7",0,17]
["Novaphos 23",0,23]
["Triplephos 46",0,46]
["Hyperphosph, 30",0,30]
["Hyperphosph, 26",0,26]
["Hyperphosph, 21+7",0,21]
["Carolonphos, 20+7",0,20]
["Carolonphos, 26",0,26]
["Dolophos 15+7",0,15]
["60er Kali",0,0]
["Kornkali 40+6",0,0]
["Kaliumsulfat 50",0,0]
["Kalimagnesia 30+10",0,0]
["Magnesia-Kainit 11+5",0,0]
["Knochenmehl, entfettet",3,12]
["Knochenmehl, entleimt",0,28]
["Blutmehl",12,0]
["Hornmehl",14,0]
["Dünger 1"]
["Dünger 2"]
["Dünger 3"]
["Dünger 4"]
["Dünger 5"]
["Dünger 6"]
["Dünger 7"]
["Dünger 8"]
["Dünger 9"]
["Dünger 10"]

{"sheet":"Wirtschaftsdünger","index":8,"n_rows":54,"n_cols":8,"rows_kept":54,"cut":false,"hidden":false,"merged":[[1,4,1,6]]}
["Wirtschaftsdünger/Güllen etc."]
[null,null,null,null,"eigene Werte",null,null,"Kategorie Verluste"]
[" ","TS","ges. N ","P2O5","TS","ges. N ","P2O5"]
[null,"%","kg/m3\n bzw. \nkg/t","kg/m3\nbzw.\n kg/t","%","kg/m3 \nbzw.\n kg/t","kg/m3\n bzw. \nkg/t"]
[]
["Rindergülle",8.2899999999999991,3.7,1.6,8.2899999999999991,3.7,1.6,"Rinder"]
["Milchviehgülle",8.93,3.6,1.8,8.93,3.6,1.8,"Rinder"]
["Jungvieh/Bullengülle",7.23,3.4,1.4,7.23,3.4,1.4,"Rinder"]
["Schweinegülle",4.1399999999999997,4.4000000000000004,2.2000000000000002,4.1399999999999997,4.4000000000000004,2.2000000000000002,"Schweine"]
["Sauen/Ferkelgülle",2.88,2.9,1.6,2.88,2.9,1.6,"Schweine"]
["Mischgülle",6.8114999999999997,3.9,1.9,6.8114999999999997,3.9,1.9,"Schweine"]
["Jauche",1.18,1.3,0.1,1.18,1.3,0.1,"sonst. org. Düngemittel"]
["Rindermist",21.8,5,3,21.8,5,3,"Rinder"]
["Schweinemist",22.4,8,7,22.4,8,7,"Schweine"]
["Mischmist",23.15,6,3,23.15,6,3,"Schweine"]
["Schaf/Ziegenmist",32.1,8,5,32.1,8,5,"andere Tierarten"]
["Pferdemist",31.4,4,2,31.4,4,2,"andere Tierarten"]
["Geflügelmist <40% TS",27.3,16,11,27.3,16,11,"Geflügel"]
["Geflügelmist >40% TS",55.3,27,18,55.3,27,18,"Geflügel"]
["eigene Werte 1"]
["eigene Werte 2"]
["eigene Werte 3"]
["eigene Werte 4"]
["eigene Werte 5"]
["eigene Werte 6"]
["eigene Werte 7"]
["eigene Werte 8"]
["eigene Werte 9"]
["eigene Werte 10"]
[]
["Kompost",63.9,12,5,63.9,12,5,"sonst. org. Düngemittel"]
["Bioabfallkompost",null,16,5,null,16,5,"sonst. org. Düngemittel"]
["Grüngutkompost",null,12,null,null,12,null,"sonst. org. Düngemittel"]
["Klärschlammkompost",30.29,10,13,30.29,10,13,"sonst. org. Düngemittel"]
["Klärschlamm, 0-5 % TS",2.76,1.3,1.3,2.76,1.3,1.3,"sonst. org. Düngemittel"]
["Klärschlamm, 5-10% TS",6.5586500000000001,1.8,1.9,6.5586500000000001,1.8,1.9,"sonst. org. Düngemittel"]
["Klärschlamm, 10-20% TS",15.9,7.5,5.2,15.9,7.5,5.2,"sonst. org. Düngemittel"]
["Klärschlamm, 20-30% TS",24.5,10,16,24.5,10,16,"sonst. org. Düngemittel"]
["Klärschlamm, 30-40% TS",33.85,8,15,33.85,8,15,"sonst. org. Düngemittel"]
["Klärschlamm, 40-80% TS",42.4,8,10,42.4,8,10,"sonst. org. Düngemittel"]
["Klärschlamm, > 80% TS",95.88,36,78,95.88,36,78,"sonst. org. Düngemittel"]
["Biogasgülle",6.92,4.7,1.9,6.92,4.7,1.9,"Biogas"]
["Biogasgülle, flüssig",4.8499999999999996,6.7,0.9,4.8499999999999996,6.7,0.9,"Biogas"]
["Biogasgülle, fest",22.9,8,7,22.9,8,7,"Biogas"]
["eigene Werte 1"]
["eigene Werte 2"]
["eigene Werte 3"]
["eigene Werte 4"]
["eigene Werte 5"]
["eigene Werte 6"]
["eigene Werte 7"]
["eigene Werte 8"]
["eigene Werte 9"]
["eigene Werte 10"]

{"sheet":"pfl_Produkte","index":9,"n_rows":213,"n_cols":6,"rows_kept":213,"cut":false,"hidden":false,"merged":[]}
["pflanzliche Produkte (Erntegut)"]
[null,"N","P2O5",null,"N","P2O5"]
["für Saatgut","kg/dt","kg/dt","Pflanzenarten","kg/dt","kg/dt"]
[]
["Weizen 12% RP Korn",1.81,0.8,"Weizen 12% RP Korn",1.81,0.8]
["Weizen 14% RP Korn",2.11,0.8,"Weizen 12% RP Korn + Stroh",2.21,1.04]
["Weizen 16% RP Korn",2.41,0.8,"Weizen 12% RPStroh",0.5,0.3]
["Durum Korn ",2.2599999999999998,0.8,"Weizen 14% RP Korn",2.11,0.8]
["Winterroggen 11% RP Korn",1.51,0.8,"Weizen 14% RP Korn + Stroh",2.5099999999999998,1.04]
["Winterroggen 12% RP Korn ",1.65,0.8,"Weizen 14% RP Stroh",0.5,0.3]
["Triticale 12% RP Korn",1.65,0.8,"Weizen 16% RP Korn",2.41,0.8]
["Triticale 13% RP Korn",1.79,0.8,"Weizen 16% RP Stroh",0.5,0.3]
["Wintergerste 12% RP Korn",1.65,0.8,"Weizen 16% RP Korn + Stroh",2.81,1.04]
["Wintergerste 13% RP Korn",1.79,0.8,"Durum Korn ",2.2599999999999998,0.8]
["S.Futtergerste 12% RP Korn",1.65,0.8,"Durum Korn + Stroh",2.66,1.04]
["S.Futtergerste 13% RP Korn",1.79,0.8,"Winterroggen 11% RP Korn",1.51,0.8]
["Braugerste 10% RP Korn",1.38,0.8,"Winterroggen 11% RP Korn + Stroh",1.96,1.07]
["Braugerste 11% RP Korn ",1.51,0.8,"Winterroggen 11% RP Stroh",0.5,0.3]
["Hafer 11% RP Korn",1.51,0.8,"Winterroggen 12% RP Korn ",1.65,0.8]
["Hafer 12% RP Korn ",1.65,0.8,"Winterroggen 12% RP Korn + Stroh",2.1,1.07]
["Dinkel (m.Spelz) Korn",1.6,0.8,"Winterroggen 12% RP Stroh",0.5,0.3]
["Mais 10% RP Korn",1.38,0.8,"Triticale 12% RP Korn",1.65,0.8]
["Mais 11% RP Korn",1.51,0.8,"Triticale 12% RP Korn + Stroh",2.1,1.07]
["Ackerbohnen Korn",4.0999999999999996,1.2,"Triticale 12% RP Stroh",0.5,0.3]
["Körnererbsen Korn",3.6,1.1000000000000001,"Triticale 13% RP Korn",1.79,0.8]
["Sojabohnen Korn",5.8,1.62,"Triticale 13% RP Korn + Stroh",2.2400000000000002,1.07]
["Bl. Lupinen Korn",4.4800000000000004,1.39,"Triticale 13% RP Stroh",0.5,0.3]
["Kartoffeln Knollen",0.35,0.14000000000000001,"Wintergerste 12% RP Korn",1.65,0.8]
["eigene Werte 1",null,null,"Wintergerste 12% RP Korn + Stroh",2,1.01]
["eigene Werte 2",null,null,"Wintergerste 12% RP Stroh",0.5,0.3]
["eigene Werte 3",null,null,"Wintergerste 13% RP Korn",1.79,0.8]
["eigene Werte 4",null,null,"Wintergerste 13% RP Korn + Stroh",2.14,1.01]
["eigene Werte 5",null,null,"Wintergerste 13% RP Stroh",0.5,0.3]
["eigene Werte 6",null,null,"S.Futtergerste 12% RP Korn",1.65,0.8]
["eigene Werte 7",null,null,"S.Futtergerste 12% RP Korn + Stroh",2.0499999999999998,1.04]
["eigene Werte 8",null,null,"S.Futtergerste 12% RP Stroh",0.5,0.3]
["eigene Werte 9",null,null,"S.Futtergerste 13% RP Korn",1.79,0.8]
["eigene Werte 10",null,null,"S.Futtergerste 13% RP Korn + Stroh",2.19,1.04]
[null,null,null,"S.Futtergerste 13% RP Stroh",0.5,0.3]
[null,null,null,"Braugerste 10% RP Korn",1.38,0.8]
[null,null,null,"Braugerste 10% RP Korn + Stroh",1.73,1.01]
[null,null,null,"Braugerste 10% RP Stroh",0.5,0.3]
[null,null,null,"Braugerste 11% RP Korn ",1.51,0.8]
[null,null,null,"Braugerste 11% RP Korn + Stroh",1.86,1.01]
[null,null,null,"Braugerste 11% RP Stroh",0.5,0.3]
[null,null,null,"Hafer 11% RP Korn",1.51,0.8]
[null,null,null,"Hafer 11% RP Korn + Stroh",2.06,1.1299999999999999]
[null,null,null,"Hafer 11% RP Stroh",0.5,0.3]
[null,null,null,"Hafer 12% RP Korn ",1.65,0.8]
[null,null,null,"Hafer 12% RP Korn + Stroh",2.2000000000000002,1.1299999999999999]
[null,null,null,"Hafer 12% RP Stroh",0.5,0.3]
[null,null,null,"Dinkel (m.Spelz) Korn",1.6,0.8]
[null,null,null,"Dinkel (m.Spelz) Korn + Stroh",2.1,1.1000000000000001]
[null,null,null,"Dinkel Stroh",0.5,0.3]
[null,null,null,"Getreide allg. Ganzpflanze",0.56000000000000005,0.23]
[null,null,null,"Körnermais 10% RP Korn",1.38,0.8]
[null,null,null,"Körnermais 10% RP Korn + Stroh",2.2799999999999998,1]
[null,null,null,"Körnermais 10% RP Stroh",0.9,0.2]
[null,null,null,"Körnermais 11% RP Korn",1.51,0.8]
[null,null,null,"Körnermais 11% RP Korn + Stroh",2.41,1]
[null,null,null,"Körnermais 11% RP Stroh",0.9,0.2]
[null,null,null,"Ackerbohnen Korn",4.0999999999999996,1.2]
[null,null,null,"Ackerbohnen Korn + Stroh",5.6,1.5]
[null,null,null,"Ackerbohnen Stroh",1.5,0.3]
[null,null,null,"Körnererbsen Korn",3.6,1.1000000000000001]
[null,null,null,"Körnererbsen Korn + Stroh",5.0999999999999996,1.4]
[null,null,null,"Körnererbsen Stroh",1.5,0.3]
[null,null,null,"Sojabohnen Korn",4.4000000000000004,1.5]
[null,null,null,"Sojabohnen Korn+Stroh",5.9,1.8]
[null,null,null,"Sojabohnen Stroh",1.5,0.3]
[null,null,null,"Bl. Lupinen Korn",4.4800000000000004,1.02]
[null,null,null,"Bl. Lupinen Korn+Stroh",5.98,1.32]
[null,null,null,"Bl. Lupinen Stroh",1.5,0.3]
[null,null,null,"Raps 23% RP Korn",3.35,1.8]
[null,null,null,"Raps 23% RP Korn + Stroh",4.54,2.48]
[null,null,null,"Raps 23% RP Stroh",0.7,0.4]
[null,null,null,"Sonnenblumen 20% RP Korn",2.91,1.6]
[null,null,null,"Sonnenblumen 20% RP Korn + Stroh",4.91,3.4]
[null,null,null,"Sonnenblumen 20% RP Stroh",1,0.9]
[null,null,null,"Senf Korn",5.08,1.77]
[null,null,null,"Senf Korn + Stroh",6.13,2.37]
[null,null,null,"Senf Stroh",0.7,0.4]
[null,null,null,"Öllein Korn",3.5,1.2]
[null,null,null,"Öllein Korn + Stroh",4.3,1.5]
[null,null,null,"Öllein Stroh",0.53,0.2]
[null,null,null,"Kartoffeln Knollen",0.35,0.14000000000000001]
[null,null,null,"Kartoffeln Knollen + Blatt",0.39,0.15]
[null,null,null,"Kartoffeln Blatt",0.2,0.04]
[null,null,null,"Zuckerrüben Rüben",0.18,0.1]
[null,null,null,"Zuckerrüben Rüben + Blatt",{"$f":"0.46","v":0.46},0.18]
[null,null,null,"Zuckerrüben Blatt",0.4,0.11]
[null,null,null,"Gehaltsrüben Rüben",0.18,0.09]
[null,null,null,"Gehaltsrüben Rüben + Blatt",0.3,0.12]
[null,null,null,"Gehaltsrüben Blatt",0.3,0.08]
[null,null,null,"Massenrüben Rüben",0.14000000000000001,7.0000000000000007E-2]
[null,null,null,"Massenrüben Rüben + Blatt",0.24,0.09]
[null,null,null,"Massenrüben Blatt",0.25,0.06]
[null,null,null,"Silomais (28% TM) Ganzpflanze",0.38,0.16]
[null,null,null,"Silomais (32% TM) Ganzpflanze",0.47,0.18]
[null,null,null,"Grassamen Korn",2.2000000000000002,0.7]
[null,null,null,"Grassamen Korn + Stroh",14.2,3.5]
[null,null,null,"Grassamen Stroh",1.5,0.35]
[null,null,null,"Klee-/Luzernesamen Korn",5.5,1.46]
[null,null,null,"Klee-/Luzernesamen Korn + Stroh",17.5,3.86]
[null,null,null,"Klee-/Luzernesamen Stroh",1.5,0.3]
[null,null,null,"Rotklee  Ganzpflanze",0.65,0.13]
[null,null,null,"Luzerne  Ganzpflanze",0.65,0.14000000000000001]
[null,null,null,"Weidelgras Ganzpflanze",0.53,0.16]
[null,null,null,"Kleegras Ganzpflanze",0.57999999999999996,0.14000000000000001]
[null,null,null,"Luzernegras Ganzpflanze",0.57999999999999996,0.15]
[null,null,null,"Futterzwischenfrüchte Ganzpflanze",0.43,0.13]
[null,null,null,"Flachs (Faserlein) Ganzpflanze",1,0.64]
[null,null,null,"Hanf (100-150 dt TM) Ganzpflanze",0.4,0.3]
[null,null,null,"Micanthus Ganzpflanze",0.15,0.12]
[null,null,null,"Grünl. 1 Nutzung    40  dt TM",1.38,0.5]
[null,null,null,"Grünl. 2 Nutzungen  55  dt TM",1.82,0.65]
[null,null,null,"Grünl. 3 Nutzungen  80  dt TM ",2.4,0.71]
[null,null,null,"Grünl. 4 Nutzungen  90  dt TM ",2.7,0.81]
[null,null,null,"Grünl. 5 Nutzungen 110 dt TM",2.8,0.87]
[null,null,null,"Blumenkohl",0.28000000000000003,0.10300000000000001]
[null,null,null,"Brokkoli",0.45,0.14899999999999999]
[null,null,null,"Buschbohne",0.25,9.1999999999999998E-2]
[null,null,null,"Chicorée",0.25,0.121]
[null,null,null,"Chinakohl",0.15,9.1999999999999998E-2]
[null,null,null,"Dill, Frischmarkt",0.3,9.1999999999999998E-2]
[null,null,null,"Dill, Industrieware",0.3,9.1999999999999998E-2]
[null,null,null,"Erdbeeren",0.17,0.05]
[null,null,null,"Feldsalat",0.45,9.9000000000000005E-2]
[null,null,null,"Feldsalat, großblättrig",0.45,9.9000000000000005E-2]
[null,null,null,"Gemüseerbse",1,0.22899999999999998]
[null,null,null,"Grünkohl",0.49,0.16300000000000001]
[null,null,null,"Gurke, Einleger",0.15,6.9000000000000006E-2]
[null,null,null,"Knollenfenchel",0.2,6.9000000000000006E-2]
[null,null,null,"Kohlrabi",0.28000000000000003,0.10300000000000001]
[null,null,null,"Kohlrübe",0.26,0.115]
[null,null,null,"Kürbis",0.25,0.20600000000000002]
[null,null,null,"Mairüben (mit Laub)",0.17,0.10300000000000001]
[null,null,null,"Möhre, Bund-",0.17,8.199999999999999E-2]
[null,null,null,"Möhre, Industrie",0.13,0.08]
[null,null,null,"Möhre, Wasch-",0.13,0.08]
[null,null,null,"Pastinake",0.25,0.23600000000000002]
[null,null,null,"Petersilie, Blatt-, bis 1. Schnitt",0.45,0.115]
[null,null,null,"Petersilie, Blatt-, nach einem Schnitt",0.45,0.115]
[null,null,null,"Petersilie, Wurzel-",0.42,0.13699999999999998]
[null,null,null,"Porree",0.25,0.08]
[null,null,null,"Radies",0.2,6.9000000000000006E-2]
[null,null,null,"Rettich, Bund-",0.17,7.5999999999999998E-2]
[null,null,null,"Rettich, deutsch",0.14000000000000001,0.08]
[null,null,null,"Rettich, japanisch",0.1,0.06]
[null,null,null,"Rhabarber ab Ertragsbeginn",0.18,4.8000000000000001E-2]
[null,null,null,"Rosenkohl",0.65,0.19500000000000001]
[null,null,null,"Rote Rüben",0.28000000000000003,0.115]
[null,null,null,"Rotkohl",0.22,0.08]
[null,null,null,"Rucola, Feinware",0.4,0.10300000000000001]
[null,null,null,"Rucola, Grobware",0.4,0.10300000000000001]
[null,null,null,"Salate, Baby Leaf Lettuce",0.35,0.08]
[null,null,null,"Salate, Blatt-, grün (Lollo, Eichblatt, Krul)",0.19,6.9000000000000006E-2]
[null,null,null,"Salate, Blatt-, rot (Lollo, Eichblatt, Krul)",0.19,6.9000000000000006E-2]
[null,null,null,"Salate, Eissalat",0.14000000000000001,5.7000000000000002E-2]
[null,null,null,"Salate, Endivien, Frisée",0.25,0.06]
[null,null,null,"Salate, Endivien, glattblättrig",0.2,0.06]
[null,null,null,"Salate, Kopfsalat",0.18,6.9000000000000006E-2]
[null,null,null,"Salate, Radicchio",0.25,9.1999999999999998E-2]
[null,null,null,"Salate, verschiedene Arten",0.19,6.9000000000000006E-2]
[null,null,null,"Salate, Romana",0.2,9.1999999999999998E-2]
[null,null,null,"Salate, Romana Herzen",0.24,9.1999999999999998E-2]
[null,null,null,"Salate, Zuckerhut",0.2,0.115]
[null,null,null,"Schnittlauch, gesät, bis 1. Schnitt",0.5,0.13699999999999998]
[null,null,null,"Schnittlauch, gesät, nach einem Schnitt",0.5,0.13699999999999998]
[null,null,null,"Schnittlauch, Anbau für Treiberei",0.5,0.13699999999999998]
[null,null,null,"Schwarzwurzel",0.23,0.16]
[null,null,null,"Sellerie, Bund-",0.27,0.126]
[null,null,null,"Sellerie, Knollen-",0.25,0.14899999999999999]
[null,null,null,"Sellerie, Stangen-",0.25,0.115]
[null,null,null,"Spargel",0.26,8.199999999999999E-2]
[null,null,null,"Spinat, Blatt-, FM, Baby",0.45,0.115]
[null,null,null,"Spinat, Blatt-, Standard",0.4,0.115]
[null,null,null,"Spinat, Hack, Standard",0.36,0.115]
[null,null,null,"Stangenbohne, Standard",0.25,9.1999999999999998E-2]
[null,null,null,"Teltower Rübchen (Herbstanbau)",0.45,0.24100000000000002]
[null,null,null,"Weißkohl, Frischmarkt",0.2,7.2999999999999995E-2]
[null,null,null,"Weißkohl, Industrie",0.2,7.2999999999999995E-2]
[null,null,null,"Wirsing",0.35,0.115]
[null,null,null,"Zucchini",0.16,0.06]
[null,null,null,"Zuckermais",0.35,0.16]
[null,null,null,"Zwiebel, Bund-",0.2,0.06]
[null,null,null,"Zwiebel, Trocken-",0.18,0.08]
[null,null,null,"Apfel",0.11,0.02]
[null,null,null,"Birne",0.1,0.02]
[null,null,null,"Quitte",0.1,0.02]
[null,null,null,"Süßkirsche",0.19,0.05]
[null,null,null,"Sauerkirsche",0.21,7.0000000000000007E-2]
[null,null,null,"Pflaume",0.16,0.05]
[null,null,null,"Pfirsich",0.15,0.05]
[null,null,null,"Aprikose",0.18,7.0000000000000007E-2]
[null,null,null,"Rebe, Traube",0.25,0.09]
[null,null,null,"Johannisbeere rot",0.2,7.0000000000000007E-2]
[null,null,null,"Johannisbeere schwarz",0.2,7.0000000000000007E-2]
[null,null,null,"Stachelbeere",0.2,7.0000000000000007E-2]
[null,null,null,"Himbeere",0.2,0.05]
[null,null,null,"Brombeere",0.2,7.0000000000000007E-2]
[null,null,null,"Sanddorn",0.2,7.0000000000000007E-2]
[null,null,null,"Aroniabeere",0.2,0.21]
[null,null,null,"eigene Werte 1"]
[null,null,null,"eigene Werte 2"]
[null,null,null,"eigene Werte 3"]
[null,null,null,"eigene Werte 4"]
[null,null,null,"eigene Werte 5"]
[null,null,null,"eigene Werte 6"]
[null,null,null,"eigene Werte 7"]
[null,null,null,"eigene Werte 8"]
[null,null,null,"eigene Werte 9"]
[null,null,null,"eigene Werte 10"]

{"sheet":"Futtermittel","index":10,"n_rows":189,"n_cols":5,"rows_kept":189,"cut":false,"hidden":false,"merged":[]}
["Futtermittel"]
["Einzelfuttermittel","TM-Gehalt %","N kg/t TM \nbzw \nN kg/t FM","P2O5 kg/t TM \nbzw\nP2O5 kg/t FM"]
[]
["Altbrot",65,24,3]
["Apfeltrester",22,13.3,4]
["Bierhefe, flüssig",10,84,26]
["Biertreber, siliert",25,40,13.7]
["CCM2",60,16.8,6.8]
["Fischmehl",91,100.8,75.599999999999994]
["Getreide, GPS1",35,16,6.6]
["Getreideschlempe, frisch (Weizen)",60,57.6,11.5]
["Getreideschlempe, getrocknet (Weizen)",92,61.1,20.6]
["Haferschälkleie",90,11.2,3.9]
["Kartoffeleiweiß",90,134.4,11.5]
["Kartoffelpülpe, siliert",18,7.8,6.4]
["Kartoffelschlempe, frisch",5.5,52.8,15.3]
["Leinextraktionsschrot",89,60.1,22]
["Leinkuchen",90,59.2,20.6]
["Luzernegrünmehl",90,29.6,8]
["Magermilch, frisch",8.5,57.6,22.9]
["Maiskeimextraktionsschrot (aus der Stärkeindustrie)",89,40,16]
["Maiskleberfutter (23-35 % RP)",90,40,19.5]
["Malzkeime",92,47.2,18.3]
["Maniok",88,4.3,2.2999999999999998]
["Melasseschnitzel",91,16,1.8]
["Molke, Permeat1",5,6.7,30.7]
["Pressschnitzel, siliert",27,13.6,2.2999999999999998]
["Rapsextraktionsschrot",89,61,27.5]
["Rapskuchen, fettarm",90,58.6,27.5]
["Roggengrießkleie",88,25.6,22.9]
["Roggenkleie",88,25.9,25.4]
["Rübenkleinteile",17,12,4.8]
["Sojaextraktionsschrot 48 % RP (HP, aus geschälter Saat)",88,87.2,17.2]
["Sojaextraktionsschrot 44 % RP (aus ungeschälter Saat)",88,80,16.7]
["Sojaschalen",88,21.6,3.7]
["Sonnenblumenextraktionsschrot, aus teilgeschälter Saat",89,60.8,25.2]
["Sonnenblumen, GPS2",35,13.4,5.6]
["Sauermolke, frisch",6.4,15.8,27.5]
["Süßmolke, frisch",6,21.6,15.3]
["Trockenschnitzel",90,13.3,2.2999999999999998]
["Vollmilch, frisch",13.5,41.6,16.7]
["Weizengrießkleie",87.5,28.2,24.1]
["Weizenkleie",88,25.6,29.8]
["Weizennachmehl",87,30.4,16]
["Zuckerrübenmelasse",78,21.6,1.1000000000000001]
["eigene Werte 1",null,null,null,"FM für Frischmasse in Spalte B eintagen"]
["eigene Werte 2",null,null,null,"FM für Frischmasse in Spalte B eintagen"]
["eigene Werte 3",null,null,null,"FM für Frischmasse in Spalte B eintagen"]
["eigene Werte 4",null,null,null,"FM für Frischmasse in Spalte B eintagen"]
["eigene Werte 5",null,null,null,"FM für Frischmasse in Spalte B eintagen"]
["eigene Werte 6",null,null,null,"FM für Frischmasse in Spalte B eintagen"]
["eigene Werte 7",null,null,null,"FM für Frischmasse in Spalte B eintagen"]
["eigene Werte 8",null,null,null,"FM für Frischmasse in Spalte B eintagen"]
["eigene Werte 9",null,null,null,"FM für Frischmasse in Spalte B eintagen"]
["eigene Werte 10",null,null,null,"FM für Frischmasse in Spalte B eintagen"]
["Weizen 12% RP Korn","FM",18.100000000000001,8]
["Weizen 12% RP Korn + Stroh","FM",22.1,10.4]
["Weizen 12% RPStroh","FM",5,3]
["Weizen 14% RP Korn","FM",21.099999999999998,8]
["Weizen 14% RP Korn + Stroh","FM",25.099999999999998,10.4]
["Weizen 14% RP Stroh","FM",5,3]
["Weizen 16% RP Korn","FM",24.1,8]
["Weizen 16% RP Stroh","FM",5,3]
["Weizen 16% RP Korn + Stroh","FM",28.1,10.4]
["Durum Korn ","FM",22.599999999999998,8]
["Durum Korn + Stroh","FM",26.6,10.4]
["Winterroggen 11% RP Korn","FM",15.1,8]
["Winterroggen 11% RP Korn + Stroh","FM",19.600000000000001,10.700000000000001]
["Winterroggen 11% RP Stroh","FM",5,3]
["Winterroggen 12% RP Korn ","FM",16.5,8]
["Winterroggen 12% RP Korn + Stroh","FM",21,10.700000000000001]
["Winterroggen 12% RP Stroh","FM",5,3]
["Triticale 12% RP Korn","FM",16.5,8]
["Triticale 12% RP Korn + Stroh","FM",21,10.700000000000001]
["Triticale 12% RP Stroh","FM",5,3]
["Triticale 13% RP Korn","FM",17.899999999999999,8]
["Triticale 13% RP Korn + Stroh","FM",22.400000000000002,10.700000000000001]
["Triticale 13% RP Stroh","FM",5,3]
["Wintergerste 12% RP Korn","FM",16.5,8]
["Wintergerste 12% RP Korn + Stroh","FM",20,10.1]
["Wintergerste 12% RP Stroh","FM",5,3]
["Wintergerste 13% RP Korn","FM",17.899999999999999,8]
["Wintergerste 13% RP Korn + Stroh","FM",21.400000000000002,10.1]
["Wintergerste 13% RP Stroh","FM",5,3]
["S.Futtergerste 12% RP Korn","FM",16.5,8]
["S.Futtergerste 12% RP Korn + Stroh","FM",20.5,10.4]
["S.Futtergerste 12% RP Stroh","FM",5,3]
["S.Futtergerste 13% RP Korn","FM",17.899999999999999,8]
["S.Futtergerste 13% RP Korn + Stroh","FM",21.9,10.4]
["S.Futtergerste 13% RP Stroh","FM",5,3]
["Braugerste 10% RP Korn","FM",13.799999999999999,8]
["Braugerste 10% RP Korn + Stroh","FM",17.3,10.1]
["Braugerste 10% RP Stroh","FM",5,3]
["Braugerste 11% RP Korn ","FM",15.1,8]
["Braugerste 11% RP Korn + Stroh","FM",18.600000000000001,10.1]
["Braugerste 11% RP Stroh","FM",5,3]
["Hafer 11% RP Korn","FM",15.1,8]
["Hafer 11% RP Korn + Stroh","FM",20.6,11.299999999999999]
["Hafer 11% RP Stroh","FM",5,3]
["Hafer 12% RP Korn ","FM",16.5,8]
["Hafer 12% RP Korn + Stroh","FM",22,11.299999999999999]
["Hafer 12% RP Stroh","FM",5,3]
["Dinkel (m.Spelz) Korn","FM",16,8]
["Dinkel (m.Spelz) Korn + Stroh","FM",21,11]
["Dinkel Stroh","FM",5,3]
["Körnermais 10% RP Korn","FM",13.799999999999999,8]
["Körnermais 10% RP Korn + Stroh","FM",22.799999999999997,10]
["Körnermais 10% RP Stroh","FM",9,2]
["Körnermais 11% RP Korn","FM",15.1,8]
["Körnermais 11% RP Korn + Stroh","FM",24.1,10]
["Körnermais 11% RP Stroh","FM",9,2]
["Ackerbohnen Korn","FM",41,12]
["Ackerbohnen Korn + Stroh","FM",56,15]
["Ackerbohnen Stroh","FM",15,3]
["Körnererbsen Korn","FM",36,11]
["Körnererbsen Korn + Stroh","FM",51,14]
["Körnererbsen Stroh","FM",15,3]
["Sojabohnen Korn","FM",58,16.200000000000003]
["Sojabohnen Korn+Stroh","FM",73,20]
["Sojabohnen Stroh","FM",15,3.8]
["Bl. Lupinen Korn","FM",44.800000000000004,13.899999999999999]
["Bl. Lupinen Korn+Stroh","FM",59.800000000000004,17.2]
["Bl. Lupinen Stroh","FM",15,3.3000000000000003]
["Raps 23% RP Korn","FM",33.5,18]
["Raps 23% RP Korn + Stroh","FM",45.4,24.8]
["Raps 23% RP Stroh","FM",7,4]
["Sonnenblumen 20% RP Korn","FM",29.1,16]
["Sonnenblumen 20% RP Korn + Stroh","FM",49.1,34]
["Sonnenblumen 20% RP Stroh","FM",10,9]
["Senf Korn","FM",50.8,17.7]
["Senf Korn + Stroh","FM",61.3,23.700000000000003]
["Senf Stroh","FM",7,4]
["Öllein Korn","FM",35,12]
["Öllein Korn + Stroh","FM",43,15]
["Öllein Stroh","FM",5.3000000000000007,2]
["Kartoffeln Knollen","FM",3.5,1.4000000000000001]
["Kartoffeln Knollen + Blatt","FM",3.9000000000000004,1.6]
["Kartoffeln Blatt","FM",2,1]
["Zuckerrüben Rüben","FM",1.7999999999999998,1]
["Zuckerrüben Rüben + Blatt","FM",4.6000000000000005,1.6]
["Zuckerrüben Blatt","FM",4,1.1000000000000001]
["Gehaltsrüben Rüben","FM",1.7999999999999998,1]
["Gehaltsrüben Rüben + Blatt","FM",3,1.2]
["Gehaltsrüben Blatt","FM",3,0.8]
["Massenrüben Rüben","FM",1.4000000000000001,0.70000000000000007]
["Massenrüben Rüben + Blatt","FM",2.4,0.89999999999999991]
["Massenrüben Blatt","FM",2.5,0.6]
["Silomais (28% TM) Ganzpflanze","FM",3.8,1.6]
["Silomais (32% TM) Ganzpflanze","FM",4.3,1.7999999999999998]
["Corn-Cob-Mix Kolben + teilw. Lieschbl.","FM",10,5]
["Lieschkolben Kolben + Lieschbl.","FM",7.6,3.2]
["Topinambur Knollen","FM",2.3000000000000003,1.5]
["Topinambur Knollen + Blatt","FM",2.8000000000000003,1.7000000000000002]
["Topinambur Blatt","FM",2.2000000000000002,0.70000000000000007]
["Grassamen Korn","FM",22,7]
["Grassamen Korn + Stroh","FM",142,31]
["Grassamen Stroh","FM",15,3]
["Klee-/Luzernesamen Korn","FM",55,14.6]
["Klee-/Luzernesamen Korn + Stroh","FM",175,38.6]
["Klee-/Luzernesamen Stroh","FM",15,3]
["Weizen (Milch- bis Teigreife) Ganzpflanze","FM",4.9000000000000004,2]
["Triticale (Mich- bis Teigreife) Ganzpflanze","FM",3.9000000000000004,2.1]
["Hafer (Milchreife) Ganzpflanze","FM",5.3000000000000007,2.2000000000000002]
["Getreide allg. Ganzpflanze","FM",5.6000000000000005,2.8000000000000003]
["Sonnenblume (Zitronenreife) Ganzpflanze","FM",4.6999999999999993,1.2]
["Sonnenblume/Mais Ganzpflanze","FM",3.4000000000000004,1.7000000000000002]
["Sudangras (Teigreife) Ganzpflanze","FM",2.7,2.3000000000000003]
["Zuckerhirse (Milch- bis Teigreife) Ganzpflanze","FM",3.5,1.7000000000000002]
["Rotklee  Ganzpflanze","FM",5.5,1.3]
["Luzerne  Ganzpflanze","FM",6,1.4000000000000001]
["Weidelgras Ganzpflanze","FM",4.8,1.6]
["Kleegras (50:50) Ganzpflanze","FM",5.2,1.4000000000000001]
["Luzernegras (50:50) Ganzpflanze","FM",5.4,1.5]
["Kleegras (70:30) Ganzpflanze","FM",5.3000000000000007,1.4000000000000001]
["Luzernegras (70:30) Ganzpflanze","FM",5.5,1.5]
["Futterzwischenfrüchte Ganzpflanze","FM",3.5,1.1000000000000001]
["Flachs (Faserlein) Ganzpflanze","FM",10,6]
["Hanf (100-150 dt TM) Ganzpflanze","FM",4,2.4]
["Micanthus Ganzpflanze","FM",1.5,1.2]
["Leguminosenzwischenfrüchte ","FM",29,9]
["Grünl. 1 Nutzung    40  dt TM","FM",13,6]
["Grünl. 2 Nutzungen  55  dt TM","FM",18,7]
["Grünl. 3 Nutzungen  75  dt TM ","FM",22,9.5]
["Grünl. 4 Nutzungen  90  dt TM ","FM",27,10]
["Grünl. 5 Nutzungen 110 dt TM","FM",28,10]
["Grünl. 2 Nut. günst    60  dt TM","FM",16,7]
["Grünl. 3 N. ung.     65  dt TM","FM",19,8]
["Grünl. 3 Nutzungen ung. 70  dt TM","FM",22,9.5]
["Grünl. 4 N. ung.     80  dt TM  ","FM",24,10]

{"sheet":"tie_Produkte","index":11,"n_rows":43,"n_cols":9,"rows_kept":43,"cut":false,"hidden":false,"merged":[[1,5,1,8]]}
["tierische Erzeugnisse und Produkte"]
["Landwirtschaftliche Nutztiere","Tierische Erzeugnisse","N kg/dt","P2O5 kg/dt","P kg/dt","Schlachtgewicht in % Lebendgewicht"]
[null,null,null,null,null,"alle","männl. Tiere","weibl. Tiere","Milchkühe"]
[]
["Rind, milchbetont (Lebendgewicht)","Kuhmilch 3,2 % RP",0.5,0.22999999999999998,0.1]
["Rind, fleischbetont (Lebendgewicht)","Kuhmilch 3,4 % RP",0.53,0.22999999999999998,0.1]
["Schweine (Lebendgewicht)","Kuhmilch 3,6 % RP",0.55999999999999994,0.22999999999999998,0.1]
["Schafe (Lebendgewicht)","Stutenmilch",0.35,0.13999999999999999,0.06]
["Ziegen (Lebendgewicht)","Rind, milchbetont (Lebendgewicht)",2.5,1.3699999999999999,0.6,null,56,54,46]
["Pferde bis 5 Monate (Lebendgewicht)","Rind, milchbetont, männl. (Schlachtgewicht)",4.4642857142857144,2.4464285714285712,1.0714285714285714]
["Pferde 5–36 Monate (Lebendgewicht)","Rind, milchbetont, weibl. (Schlachtgewicht)",4.6296296296296298,2.5370370370370372,1.1111111111111112]
["Legehennen (Lebendgewicht)","Rind, milchbetont, Milchkühe (Schlachtgewicht)",5.4347826086956514,2.9782608695652177,1.3043478260869565]
["Masthähnchen (Lebendgewicht)","Rind, fleischbetont (Lebendgewicht)",2.7,1.49,0.65,null,58,56,50]
["Puten (Lebendgewicht)","Rind, fleischbetont, männl. (Schlachtgewicht)",4.8214285714285712,2.6607142857142856,1.1607142857142858]
["Enten (Lebendgewicht)","Rind, fleischbetont, weibl. (Schlachtgewicht)",4.8214285714285712,2.6607142857142856,1.1607142857142858]
["Gänse (Lebendgewicht)","Rind, fleischbetont, Milchkühe (Schlachtgewicht)",5.4,2.9799999999999995,1.3]
["Kaninchen (Lebendgewicht)","Schweine (Lebendgewicht)",2.56,1.17,0.51,79]
["Gehegewild (Lebendgewicht)","Schweine (Schlachtgewicht)",3.2405063291139244,1.481012658227848,0.64556962025316456]
["eigene Werte 1","Schafe (Lebendgewicht)",2.6,1.3699999999999999,0.6,48]
["eigene Werte 2","Schafe (Schlachtgewicht)",5.4166666666666661,2.8541666666666665,1.25]
["eigene Werte 3","Ziegen (Lebendgewicht)",2.6,1.3699999999999999,0.6,48]
["eigene Werte 4","Ziegen (Schlachtgewicht)",5.4166666666666661,2.8541666666666665,1.25]
["eigene Werte 5","Pferde bis 5 Monate (Lebendgewicht)",2.7,2.06,0.9]
["eigene Werte 6","Pferde 5–36 Monate (Lebendgewicht)",3,1.7399999999999998,0.76]
["eigene Werte 7","Legehennen (Lebendgewicht)",3.5,1.28,0.55999999999999994]
["eigene Werte 8","Masthähnchen (Lebendgewicht)",3,0.91999999999999993,0.4]
["eigene Werte 9","Puten (Lebendgewicht)",3.3,1.17,0.51]
["eigene Werte 10","Enten (Lebendgewicht)",3,1.1499999999999999,0.5]
[null,"Gänse (Lebendgewicht)",3,1.21,0.53]
[null,"Kaninchen (Lebendgewicht)",3,1.49,0.65]
[null,"Gehegewild (Lebendgewicht)",2.6,1.3699999999999999,0.6]
[null,"Hühnerei 1 000 Stück (à 62,5 g)",0.11899999999999999,2.6000000000000002E-2,1.0999999999999999E-2]
[null,"Schafwolle",12.8,0.09,0.04]
[null,"eigene Werte 1"]
[null,"eigene Werte 2"]
[null,"eigene Werte 3"]
[null,"eigene Werte 4"]
[null,"eigene Werte 5"]
[null,"eigene Werte 6"]
[null,"eigene Werte 7"]
[null,"eigene Werte 8"]
[null,"eigene Werte 9"]
[null,"eigene Werte 10"]

{"sheet":"Leguminosen","index":12,"n_rows":30,"n_cols":7,"rows_kept":30,"cut":false,"hidden":true,"merged":[[0,2,2,2],[0,3,2,3],[0,4,2,4],[1,5,1,6],[0,5,0,6],[2,5,2,6]]}
["Leguminosen","Kultur","Haupternteprodukt",null,"Mittl. Ertrag","Symbiotische N-Bindung"]
[null,null,null,null,null,"bezogen auf"]
[null,null,null,null,null,"Haupternteprodukt"]
[null,null,null,"TM1 %","dt/ha FM2","kg N/ha","kg N/dt FM2 Ernteprodukt"]
[]
[{"$f":"B6&\", \"&C6","v":"Ackerbohne, Korn (30 % RP)"},"Ackerbohne","Korn (30 % RP)",86,35,175,5]
[{"$f":"B7&\", \"&C7","v":"Erbse, Korn (26 % RP)"},"Erbse","Korn (26 % RP)",86,35,154,4.4000000000000004]
["Linse, Korn (26 % RP)","Linse","Korn (26 % RP)",86,15,65,4.3499999999999996]
["Lupine, blau, Korn (33 % RP)","Lupine, blau","Korn (33 % RP)",86,30,150,5]
["Sojabohnen, Korn (32 % RP)","Sojabohnen","Korn (32 % RP)",86,20,106,5.3]
["Trockenspeiseerbse, Korn (26 % RP)","Trockenspeiseerbse","Korn (26 % RP)",86,35,152,4.3499999999999996]
["Wicke, Korn (26 % RP)","Wicke","Korn (26 % RP)",86,15,66,4.3899999999999997]
["Ackerbohne, Ganzpflanze","Ackerbohne","Ganzpflanze",20,250,95,0.38]
["Esparsette, Ganzpflanze","Esparsette","Ganzpflanze",20,200,94,0.47]
["Futtererbse, Ganzpflanze","Futtererbse","Ganzpflanze",20,250,95,0.38]
["Klee, Ganzpflanze","Klee","Ganzpflanze",20,450,293,0.65]
["Klee : Gras (50:50), Ganzpflanze","Klee : Gras (50:50)","Ganzpflanze",20,500,165,0.33]
["Klee : Gras (70:30), Ganzpflanze","Klee : Gras (70:30)","Ganzpflanze",20,500,230,0.46]
["Kleegras (30:70), Ganzpflanze","Kleegras (30:70)","Ganzpflanze",20,450,90,0.2]
["Lupine, Futter, Ganzpflanze","Lupine, Futter","Ganzpflanze",20,250,95,0.38]
["Luzerne, Ganzpflanze","Luzerne","Ganzpflanze",20,400,260,0.65]
["Luzerne : Gras (50:50), Ganzpflanze","Luzerne : Gras (50:50)","Ganzpflanze",20,500,165,0.33]
["Luzerne : Gras (70:30), Ganzpflanze","Luzerne : Gras (70:30)","Ganzpflanze",20,500,230,0.46]
["Luzernegras (30:70), Ganzpflanze","Luzernegras (30:70)","Ganzpflanze",20,530,106,0.2]
["Serradella, Ganzpflanze","Serradella","Ganzpflanze",20,150,57,0.38]
[{"$f":"B26&\", \"&C26","v":"Sonst. einjährige Leguminosenfutterpflanzen, Ganzpflanze"},"Sonst. einjährige Leguminosenfutterpflanzen","Ganzpflanze",20,250,95,0.38]
[{"$f":"B27&\", \"&C27","v":"Wicke, Futter, Ganzpflanze"},"Wicke, Futter","Ganzpflanze",20,200,76,0.38]
["Buschbohne, Hülse + Korn","Buschbohne","Hülse + Korn",12,120,36,0.3]
["Stangenbohne, Hülse + Korn","Stangenbohne","Hülse + Korn",12,250,75,0.3]
["Mark-, Gemüseerbse, Korn","Mark-, Gemüseerbse","Korn",15,70,105,1.5]

{"sheet":"Verluste","index":13,"n_rows":10,"n_cols":5,"rows_kept":10,"cut":false,"hidden":true,"merged":[[1,1,1,2],[1,3,1,4]]}
["Verluste"]
[null,"Unvermeidbare Stickstoffverluste bei der Lagerung",null,"Unvermeidbare Stickstoffverluste bei der Aufbringung"]
[null,"Gülle, Gärrückstände","Festmist, Jauche","Gülle, Gärrückstände","Festmist, Jauche"]
[]
["Rinder",15,30,{"$f":"IF(Verluste!E11>2020,15,10)","v":10},10]
["Schweine",20,30,{"$f":"IF(Verluste!E12>2020,10,5)","v":5},10]
["Geflügel",0,40,0,10]
["andere Tierarten",0,45,0,5]
["Biogas",5,0,10,0]
["sonst. org. Düngemittel",0,0,10,0]

{"sheet":"GV_Tab","index":14,"n_rows":19,"n_cols":2,"rows_kept":19,"cut":false,"hidden":true,"merged":[]}
["Tier","GV"]
["keine"]
["Ponys und Kleinpferde",0.7]
["Andere Pferde unter 3 Jahren",0.7]
["Andere Pferede 3 Jahre alt und älter",1.1000000000000001]
["Kälber und Jungrinder unter 1 Jahr",0.3]
["Jungrinder 1 bis unter 2 Jahren alt",0.7]
["Färsen, Milchkühe, Mutterkühe, Masttiere",1]
["Schafe unter 1 Jahr einschl. Lämmer",0.05]
["Schafe 1 Jahr und älter",0.1]
["Ferkel",0.02]
["Schweine unter 50 kg Lebendgewicht (LG)",0.06]
["Mastschweine über 50 kg LG",0.16]
["Zuchtschweine, Eber über 50 kg LG",0.3]
["Legehennen 1/2 Jahr und älter",4.0000000000000001E-3]
["Küken und Legehnenn unter 1/2 Jahr ",4.0000000000000001E-3]
["Schlacht- und Masthänchen und -hühner",4.0000000000000001E-3]
["Gänse insgesamt",4.0000000000000001E-3]
["Truthühner insgesamt",4.0000000000000001E-3]

{"sheet":"Nährstoffausscheidungen","index":15,"n_rows":126,"n_cols":4,"rows_kept":126,"cut":false,"hidden":false,"merged":[[1,1,1,3]]}
["Nährstoffausscheidungen"]
[null,"kg pro Stallplatz oder\nTier und Jahr"]
[null,"kg N","kg P2O5","Kategorie"]
[]
["Kuh-/Rinderhaltung; \nKälberaufzucht",16.600000000000001,6.4,"Rinder"]
["Kuh-/Rinderhaltung; \nGrünlandb. Konventionell",57,16.399999999999999,"Rinder"]
["Kuh-/Rinderhaltung; \nGrünlandb. Extensiv",54,16,"Rinder"]
["Kuh-/Rinderhaltung; \nAckerbaub. mit Weide",48,15.5,"Rinder"]
["Kuh-/Rinderhaltung; \nAckerbaub. Stallhaltung",45,15,"Rinder"]
["Kuh-/Rinderhaltung; \nmittl. u. schwere R. Grünl. mit Weide 6000 kg",114,36,"Rinder"]
["Kuh-/Rinderhaltung; \nmittl. u. schwere R. Grünl. mit Weide 8000 kg",129,43,"Rinder"]
["Kuh-/Rinderhaltung; \nmittl. u. schwere R. Grünl. mit Weide 10000 kg",143,47,"Rinder"]
["Kuh-/Rinderhaltung; \nmittl. u. schwere R. Grünl. ohne Weide 6000 kg",109,37,"Rinder"]
["Kuh-/Rinderhaltung; \nmittl. u. schwere R. Grünl. ohne Weide 8000 kg",124,43,"Rinder"]
["Kuh-/Rinderhaltung; \nmittl. u. schwere R. Grünl. ohne Weide 10000 kg",141,48,"Rinder"]
["Kuh-/Rinderhaltung; \nmittl. u. schwere R. Grünl. ohne Weide 12000 kg",159,55,"Rinder"]
["Kuh-/Rinderhaltung; \nAckerfutterb.mit Weide 6000 kg",103,37,"Rinder"]
["Kuh-/Rinderhaltung; \nAckerfutterb.mit Weide 8000 kg",117,42,"Rinder"]
["Kuh-/Rinderhaltung; \nAckerfutterb.mit Weide 10000 kg",134,47,"Rinder"]
["Kuh-/Rinderhaltung; \nAckerfutterb.mit Weide 12000 kg",153,52,"Rinder"]
["Kuh-/Rinderhaltung; \nAckerfutterb. ohne Weide mit Heu 6000 kg",100,36,"Rinder"]
["Kuh-/Rinderhaltung; \nAckerfutterb. ohne Weide mit Heu 8000 kg",115,42,"Rinder"]
["Kuh-/Rinderhaltung; \nAckerfutterb. ohne Weide mit Heu 10000 kg",133,47,"Rinder"]
["Kuh-/Rinderhaltung; \nAckerfutterb. ohne Weide mit Heu 12000 kg",152,52,"Rinder"]
["Kuh-/Rinderhaltung; \nAckerfutterbaub. 5000 kg",76,27,"Rinder"]
["Kuh-/Rinderhaltung; \nAckerfutterbaub. 7000 kg",91,33,"Rinder"]
["Kuh-/Rinderhaltung; \nAckerfutterbaub. 9000 kg",111,42,"Rinder"]
["Kuh-/Rinderhaltung; \nMast von 50 bis 350 kg LM; 1,3 Umtriebe p.a.",31,12.7,"Rinder"]
["Kuh-/Rinderhaltung; \n50 bis 250 kg LM; 2,1 Umtriebe p.a.",13,6.5,"Rinder"]
["Kuh-/Rinderhaltung; \n50 bis 260 kg LM; 1,9 Umtriebe p.a.",15.9,7.3,"Rinder"]
["Kuh-/Rinderhaltung; \n80 bis 210 kg LM; 2,7 Umtriebe p.a.",15.7,5.4,"Rinder"]
["Kuh-/Rinderhaltung; \n81 bis 210 kg LM; 2,7 Umtriebe p.a. N/P reduziert",14.6,4.5,"Rinder"]
["Kuh-/Rinderhaltung; \nbis 675 kg LM (19 Monate) ab Kalb 45 kg LM",36.6,14.2,"Rinder"]
["Kuh-/Rinderhaltung; \nbis 750 kg LM ab Kalb 45 kg LM",39.1,14.3,"Rinder"]
["Kuh-/Rinderhaltung; \nbis 750 kg LM ab Kalb 80 kg LM",40.700000000000003,14.7,"Rinder"]
["Kuh-/Rinderhaltung; \nbis 750 kg LM ab Kalb 210 kg LM",41.3,14.8,"Rinder"]
["Kuh-/Rinderhaltung; \n500 kg LM; 0,9 Kalb je Kuh p.a.; 6 Monate Säugezeit",88,26,"Rinder"]
["Kuh-/Rinderhaltung; \n700 kg LM; 0,9 Kalb je Kuh p.a.; 9 Monate Säugezeit (230 kg Abs.gew.)",105,31,"Rinder"]
["Kuh-/Rinderhaltung; \n700 kg LM; 0,9 Kalb je Kuh p.a.; (340 kg Abs.gew.)",114,33,"Rinder"]
["Zucht- und Mastschweine;\nFerkelaufzucht bis 8 kg, 22 Ferkel, Uni.Futter",27.1,12.6,"Schweine"]
["Zucht- und Mastschweine;\nFerkelaufzucht bis 8 kg, 22 Ferkel, N/P red.Futter",24,11,"Schweine"]
["Zucht- und Mastschweine;\nFerkelaufzucht bis 8 kg, 22 Ferkel, N/P stark red.Futter",23,10.3,"Schweine"]
["Zucht- und Mastschweine;\nFerkelaufzucht bis 8 kg, 25 Ferkel, Uni.Futter",27.3,12.6,"Schweine"]
["Zucht- und Mastschweine;\nFerkelaufzucht bis 8 kg, 25 Ferkel, N/P red.Futter",24.1,11.2,"Schweine"]
["Zucht- und Mastschweine;\nFerkelaufzucht bis 8 kg, 25 Ferkel, N/P stark red.Futter",23.1,10.3,"Schweine"]
["Zucht- und Mastschweine;\nFerkelaufzucht bis 8 kg, 28 Ferkel, Uni.Futter",27.5,12.8,"Schweine"]
["Zucht- und Mastschweine;\nFerkelaufzucht bis 8 kg, 28 Ferkel, N/P red.Futter",24.2,11.2,"Schweine"]
["Zucht- und Mastschweine;\nFerkelaufzucht bis 8 kg, 28 Ferkel, N/P stark red.Futter",23.2,10.3,"Schweine"]
["Zucht- und Mastschweine;\nFerkelaufzucht bis 28 kg, 22 Ferkel, Uni.Futter",39.200000000000003,17.2,"Schweine"]
["Zucht- und Mastschweine;\nFerkelaufzucht bis 28 kg, 22 Ferkel, N/P red.Futter",35.1,15.3,"Schweine"]
["Zucht- und Mastschweine;\nFerkelaufzucht bis 28 kg, 22 Ferkel, N/P stark red.Futter",33.5,14,"Schweine"]
["Zucht- und Mastschweine;\nFerkelaufzucht bis 28 kg, 25 Ferkel, Uni.Futter",41.1,17.899999999999999,"Schweine"]
["Zucht- und Mastschweine;\nFerkelaufzucht bis 28 kg, 25 Ferkel, N/P red.Futter",36.799999999999997,16,"Schweine"]
["Zucht- und Mastschweine;\nFerkelaufzucht bis 28 kg, 25 Ferkel, N/P stark red.Futter",35,14.7,"Schweine"]
["Zucht- und Mastschweine;\nFerkelaufzucht bis 28 kg, 28 Ferkel, Uni.Futter",42.9,18.600000000000001,"Schweine"]
["Zucht- und Mastschweine;\nFerkelaufzucht bis 28 kg, 28 Ferkel, N/P red.Futter",38.4,16.7,"Schweine"]
["Zucht- und Mastschweine;\nFerkelaufzucht bis 28 kg, 28 Ferkel, N/P stark red.Futter",36.6,15.1,"Schweine"]
["Zucht- und Mastschweine;\n450 g tgl. Zunah. 8 bis 28 kg LM Universalfutter ",3.8,1.4,"Schweine"]
["Zucht- und Mastschweine;\n450 g tgl. Zunah. ab 8 bzw. 15 kg LM N/P red. Futter",3.6,1.4,"Schweine"]
["Zucht- und Mastschweine;\n450 g tgl. Zunah. ab 8 bzw. 15 kg LM N/P stark red. Futter",3.4,1.1000000000000001,"Schweine"]
["Zucht- und Mastschweine;\n500 g tgl. Zunah.8 bis 28 kg LM Universalfutter",4.2,1.6,"Schweine"]
["Zucht- und Mastschweine;\n500 g tgl. Zunah.ab 8 bzw. 15 kg LM N/P red. Futter",3.8,1.4,"Schweine"]
["Zucht- und Mastschweine;\n500 g tgl. Zunah.ab 8 bzw. 15 kg LM N/P stark red. Futter",3.6,1.4,"Schweine"]
["Zucht- und Mastschweine;\n28 bis 115 kg LM; 180 kg Zuwachs je Platz, Universalfutter",10.8,5.5,"Schweine"]
["Zucht- und Mastschweine;\n29 bis 115 kg LM; 180 kg Zuwachs je Platz N/P Reduziert",9,4.5999999999999996,"Schweine"]
["Zucht- und Mastschweine;\n95 bis 135 kg LM; 240 kg Zuwachs je Platz p.a. Universalfutter",15.4,8.5,"Schweine"]
["Zucht- und Mastschweine;\n96 bis 135 kg LM; 240 kg Zuwachs je Platz p.a. N/P Reduziert",13.3,7.5,"Schweine"]
["Zucht- und Mastschweine;\n700 g Tageszunahme; 210 kg Zuwachs Universalfutter",11.1,4.8,"Schweine"]
["Zucht- und Mastschweine;\n7010 g Tageszunahme; 210 kg Zuwachs N/P reduziert",10.7,4.0999999999999996,"Schweine"]
["Zucht- und Mastschweine;\n700 g Tageszunahme; 210 kg Zuwachs stark N/P reduziert",9.6,3.7,"Schweine"]
["Zucht- und Mastschweine;\n750 g Tageszunahme; 223 kg Zuwachs Universalfutter",11.4,4.8,"Schweine"]
["Zucht- und Mastschweine;\n750 g Tageszunahme; 223 kg Zuwachs N/P reduziert",10.9,4.0999999999999996,"Schweine"]
["Zucht- und Mastschweine;\n750 g Tageszunahme; 223 kg Zuwachs stark N/P reduziert",9.8000000000000007,3.9,"Schweine"]
["Zucht- und Mastschweine;\n850 g Tageszunahme; 244 kg Zuwachs Universalfutter",12.2,5,"Schweine"]
["Zucht- und Mastschweine;\n850 g Tageszunahme; 244 kg Zuwachs N/P reduziert",11.7,4.4000000000000004,"Schweine"]
["Zucht- und Mastschweine;\n850 g Tageszunahme; 244 kg Zuwachs stark N/P reduziert",10.6,3.9,"Schweine"]
["Zucht- und Mastschweine;\n950 g Tageszunahme; 267 kg Zuwachs Universalfutter",12.5,5,"Schweine"]
["Zucht- und Mastschweine;\n950 g Tageszunahme; 267 kg Zuwachs N/P reduziert",12,4.4000000000000004,"Schweine"]
["Zucht- und Mastschweine;\n950 g Tageszunahme; 267 kg Zuwachs stark N/P reduziert",10.8,3.9,"Schweine"]
["Pferdehaltung;\nReitpferde\n500 – 600 kg LM Stallhaltung",51.1,23.4,"andere Tierarten"]
["Pferdehaltung;\nReitpferde\n500 – 600 kg LM Stall-/Weidehaltung",53.6,23.4,"andere Tierarten"]
["Pferdehaltung;\nReitponys\n300 kg LM;\nleichte Arbeit Stallhaltung",34.9,16.5,"andere Tierarten"]
["Pferdehaltung;\nReitponys\n300 kg LM;\nleichte Arbeit SStall-/Weidehaltung",33.4,15.3,"andere Tierarten"]
["Pferdehaltung;\nGroßpferd 600 kg LM; Stall-/Weidehaltung; 0,5 Fohlen p.a.",63.5,28,"andere Tierarten"]
["Pferdehaltung;\nPony 350 kg LM; Stall-/Weidehaltung; 0,5 Fohlen p.a.",42.3,18.399999999999999,"andere Tierarten"]
["Pferdehaltung;\nGroßpferd; 365 kg Zuwachs; Stall/Weidehaltung; 6. - 36. Monat",44.5,18.899999999999999,"andere Tierarten"]
["Pferdehaltung;\nPony; 150 kg Zuwachs; Stall-/Weidehaltung; 6. - 36. Monat",31.6,13.5,"andere Tierarten"]
["Schaf- und Ziegenhaltung1,5 Lämmer/Schaf; 40 kg Zuwachs je Lamm, konventionell",20.100000000000001,6.2,"andere Tierarten"]
["Schaf- und Ziegenhaltung1,1 Lämmer/Schaf; 40 kg Zuwachs je Lamm exensiv",17.600000000000001,5,"andere Tierarten"]
["Schaf- und Ziegenhaltung 800 kg Milch/Ziege p.a.; 1,5 Lämmer je Ziege; 16 kg Zuwachs/Lamm mit Nachzucht",15.2,5.7,"andere Tierarten"]
["Schaf- und Ziegenhaltung 45 kg Zuwachs je Produktionseinheit (1 Alttier mit 0,85 Kalb)",null,null,"andere Tierarten"]
["Kaninchenhaltung 52 aufgezogene Jungtiere/ Häsin p.a. Aufzucht bis 0,6 kg LM",2.6,1.5,"andere Tierarten"]
["Kaninchenhaltung 52 aufgezogene Jungtiere/ Häsin p.a.Aufzucht bis 3 kg LM",9.6999999999999993,5.4,"andere Tierarten"]
["KaninchenhaltungMast 0,6 bis 3 kg LM; 14 kg Zuwachs/Platz",0.7,0.4,"andere Tierarten"]
["GehegewildFleischerzeugung; 45 kg Zuwachs (1 Alttier mit 0,85 Kalb)",21.6,6.2,"andere Tierarten"]
["Geflügelmast EiererzeugungJunghennenaufzucht 3,5 kg Zuwachs, Standardfutter",0.26900000000000002,0.17599999999999999,"andere Tierarten"]
["Geflügelmast EiererzeugungJunghennenaufzucht 3,5 kg Zuwachs, N-/P-reduziert",0.252,0.151,"Geflügel"]
["Geflügelmast Eiererzeugung;\nLegehennenhaltung Standardfutter",0.76400000000000001,0.39600000000000002,"Geflügel"]
["Geflügelmast Eiererzeugung;\nLegehennenhaltung N-/P-reduziert",0.73099999999999998,0.34599999999999997,"Geflügel"]
["Geflügelmast Eiererzeugung;\nHähnchenmast, Mast über 39 Tage; Standartfutter",0.41299999999999998,0.20799999999999999,"Geflügel"]
["Geflügelmast Eiererzeugung;\nHähnchenmast, 2,6 kg Zuwachs/Tier N-/P-reduziert",0.38500000000000001,0.17599999999999999,"Geflügel"]
["Geflügelmast Eiererzeugung;\nHähnchenmast, Mast über 34 bis 38 Tage; Standartfutter",0.38800000000000001,0.19,"Geflügel"]
["Geflügelmast Eiererzeugung;\nHähnchenmast, 2,3 kg Zuwachs/Tier N-/P-reduziert",0.35699999999999998,0.17399999999999999,"Geflügel"]
["Geflügelmast Eiererzeugung;\nHähnchenmast, Mast über 30 bis 33 Tage; Standartfutter",0.32800000000000001,0.17399999999999999,"Geflügel"]
["Geflügelmast Eiererzeugung;\nHähnchenmast, 1,8 kg Zuwachs/Tier N-/P-reduziert",0.311,0.153,"Geflügel"]
["Geflügelmast Eiererzeugung;\nHähnchenmast, Mast über 39 Tage; Standartfutter",0.26700000000000002,0.14199999999999999,"Geflügel"]
["Geflügelmast Eiererzeugung;\nHähnchenmast, 1,55 kg Zuwachs/Tier N-/P-reduziert",0.249,0.121,"Geflügel"]
["Geflügelmast Eiererzeugung;\nHähne, 22,1 kg Zuwachs; bis 21 Wochen Mast (56,4 kg Futterverbrauch je Tier), Standartfutter",2.145,1.2090000000000001,"Geflügel"]
["Geflügelmast Eiererzeugung;\nHähne, 22,1 kg Zuwachs; bis 21 Wochen Mast (56,4 kg Futterverbrauch je Tier), N-/P-reduziert",1.9910000000000001,0.94099999999999995,"Geflügel"]
["Geflügelmast Eiererzeugung;\nHennen 10,9 kg Zuwachs; 16 Wochen Mast (26,7 kg Futterverbrauch je Tier), Standardfutter",1.42,0.77400000000000002,"Geflügel"]
["Geflügelmast Eiererzeugung;\nHennen 10,9 kg Zuwachs; 16 Wochen Mast (26,7 kg Futterverbrauch je Tier), N-/P-reduziert",1.3420000000000001,0.54300000000000004,"Geflügel"]
["Geflügelmast Eiererzeugung;\nHähne ab der 6. Woche, Standardfutter",2.468,1.3720000000000001,"Geflügel"]
["Geflügelmast Eiererzeugung;\nHähne ab der 6. Woche, N-/P-reduziert",2.282,1.044,"Geflügel"]
["Geflügelmast Eiererzeugung;\nHennen ab der 6. Woche, Standardfutter",1.6519999999999999,0.92300000000000004,"Geflügel"]
["Geflügelmast Eiererzeugung;\nHennen ab der 6. Woche, N-/P-reduziert",1.542,0.72599999999999998,"Geflügel"]
["Geflügelmast Eiererzeugung;\ngemischt geschlechtliche Mast; 50 % Hähne und 50% Hennen, Standardfutter",1.6519999999999999,0.92300000000000004,"Geflügel"]
["Geflügelmast Eiererzeugung;\ngemischt geschlechtliche Mast; 50 % Hähne und 50% Hennen, N-/P-reduziert",1.542,0.72599999999999998,"Geflügel"]
["Geflügelmast Eiererzeugung;\nPutenaufzucht bis 5 Wochen 20 % Hähne, 50 % Hennen, Standardfutter",0.442,0.28899999999999998,"Geflügel"]
["Geflügelmast Eiererzeugung;\nPekingenten, 19,5 kg Zuwachs/Platz p.a.; 6,5 Durchgänge (3,0 kg Zuwachs je Tier)",0.60499999999999998,0.34399999999999997,"Geflügel"]
["Geflügelmast Eiererzeugung;\nFlugenten 15,4 kg Zuwachs/Platz p.a.; 4 Durchgänge; 2,7 kg weiblich, 5,0 kg männlich (w:m = 1:1)",0.57599999999999996,0.36699999999999999,"Geflügel"]
["Geflügelmast Eiererzeugung;\nSchnellmast, 5,0 kg Zuwachs/Tier",0.23100000000000001,0.13300000000000001,"Geflügel"]
["Geflügelmast Eiererzeugung;\nMittelmast, 6,8 kg Zuwachs/Tier",0.70199999999999996,0.38700000000000001,"Geflügel"]
["Geflügelmast Eiererzeugung;\nSpät-/Weidemast, 7,8 kg Zuwachs/Tier",1.0740000000000001,0.33400000000000002,"Geflügel"]
["Gänsemast, Schnellmast, 5,0 kg Zuwachs/Tier, ",0.23100000000000001,0.13300000000000001,"Geflügel"]
["Gänsemast, Mittelmast, 6,8 kg Zuwachs/Tier, ",0.70199999999999996,0.38700000000000001,"Geflügel"]
["Gänsemast, Spät-/Weidemast, 7,8 kg Zuwachs/Tier, ",1.0740000000000001,0.33400000000000002,"Geflügel"]

{"sheet":"Grobfutter","index":16,"n_rows":41,"n_cols":3,"rows_kept":41,"cut":false,"hidden":true,"merged":[[0,1,0,2]]}
["Grobfutter","Nährstoffaufnahme in kg"]
[null,"N","P2O5"]
[]
["Kälberaufzucht 0 bis 16 Wochen, 90 kg Zuwachs, 3 Durchgänge",5.6,2]
["Kuh-/Rinderhaltung; \nGrünlandb. Konventionell",58,17]
["Kuh-/Rinderhaltung; \nGrünlandb. Extensiv",53,16]
["Kuh-/Rinderhaltung; \nAckerbaub. mit Weide",48,15]
["Kuh-/Rinderhaltung; \nAckerbaub. Stallhaltung",43,14]
["Kuh-/Rinderhaltung; \nmittl. u. schwere R. Grünl. mit Weide 6000 kg",108,33]
["Kuh-/Rinderhaltung; \nmittl. u. schwere R. Grünl. mit Weide 8000 kg",111,34]
["Kuh-/Rinderhaltung; \nmittl. u. schwere R. Grünl. mit Weide 10000 kg",113,36]
["Kuh-/Rinderhaltung; \nmittl. u. schwere R. Grünl. ohne Weide 6000 kg",98,31]
["Kuh-/Rinderhaltung; \nmittl. u. schwere R. Grünl. ohne Weide 8000 kg",98,31]
["Kuh-/Rinderhaltung; \nmittl. u. schwere R. Grünl. ohne Weide 10000 kg",101,33]
["Kuh-/Rinderhaltung; \nAckerfutterb.mit Weide 6000 kg",86,28]
["Kuh-/Rinderhaltung; \nAckerfutterb.mit Weide 8000 kg",93,31]
["Kuh-/Rinderhaltung; \nAckerfutterb.mit Weide 10000 kg",98,33]
["Kuh-/Rinderhaltung; \nAckerfutterb.mit Weide 12000 kg",101,34]
["Kuh-/Rinderhaltung; \nAckerfutterb. ohne Weide mit Heu 6000 kg",77,27]
["Kuh-/Rinderhaltung; \nAckerfutterb. ohne Weide mit Heu 8000 kg",84,29]
["Kuh-/Rinderhaltung; \nAckerfutterb. ohne Weide mit Heu 10000 kg",89,31]
["Kuh-/Rinderhaltung; \nAckerfutterb. ohne Weide mit Heu 12000 kg",94,32]
["Kuh-/Rinderhaltung; \nAckerfutterbaub. 5000 kg",68,22]
["Kuh-/Rinderhaltung; \nAckerfutterbaub. 7000 kg",75,25]
["Kuh-/Rinderhaltung; \nAckerfutterbaub. 9000 kg",80,27]
["Kuh-/Rinderhaltung; \nMast von 50 bis 350 kg LM; 1,3 Umtriebe p.a.",7,2.9]
["Kuh-/Rinderhaltung; Kälbermast\n50 bis 250 kg LM; 2,1 Umtriebe p.a.",0.6,0.4]
["Kuh-/Rinderhaltung; Kälbermast\n50 bis 260 kg LM; 1,9 Umtriebe p.a.",0.3,0.1]
["Kuh-/Rinderhaltung; Fresseraufzucht\n80 bis 210 kg LM; 2,7 Umtriebe p.a.",6,2.2999999999999998]
["Kuh-/Rinderhaltung; Fresseraufzucht\n81 bis 210 kg LM; 2,7 Umtriebe p.a. N/P reduziert",6,2.2999999999999998]
["Kuh-/Rinderhaltung; Bullenmast\nbis 675 kg LM (19 Monate) ab Kalb 45 kg LM",19.600000000000001,7.9]
["Kuh-/Rinderhaltung; Bullenmast\nbis 750 kg LM ab Kalb 45 kg LM",20.2,8.1]
["Kuh-/Rinderhaltung; Bullenmast\nbis 750 kg LM ab Kalb 80 kg LM",21,8.5]
["Kuh-/Rinderhaltung; Bullenmast\nbis 750 kg LM ab Kalb 210 kg LM",22.4,9]
["Kuh-/Rinderhaltung; Mutterkuhhaltung\n500 kg LM; 0,9 Kalb je Kuh p.a.; 6 Monate Säugezeit",90,27]
["Kuh-/Rinderhaltung; Mutterkuhhaltung\n700 kg LM; 0,9 Kalb je Kuh p.a.; 9 Monate Säugezeit (230 kg Abs.gew.)",108,32]
["Kuh-/Rinderhaltung; Mutterkuhhaltung\n700 kg LM; 0,9 Kalb je Kuh p.a.; (340 kg Abs.gew.)",120,36]
["Schaf- und Ziegenhaltung1,5 Lämmer/Schaf; 40 kg Zuwachs je Lamm, konventionell",18.2,5.3]
["Schaf- und Ziegenhaltung1,1 Lämmer/Schaf; 40 kg Zuwachs je Lamm exensiv",17.3,5]
["Schaf- und Ziegenhaltung800 kg Milch/Ziege p.a.; 1,5 Lämmer je Ziege; 16 kg Zuwachs/Lamm mit Nachzucht",11.7,3.8]
["Damtiere \n45 kg Zuwachs je Produktionseinheit (1 Alttier mit 0,85 Kalb)",21.3,6.1]